Workbook

Sheet Instructions
A1: =Main!A1 -> A Water Quality Index for Washington State streams (Version 6: 2014.06.11).
A2: Summary
A3: This Water Quality Index is designed to rate general water quality relative to expected quality. Monitoring results from monthly grab samples can be converted to scores ranging from 1 to 100. In general, scores less than 40 indicate water quality did not meet expectations. These are areas of highest concern. Scores of 40 to 79 indicate moderate concern, and scores of 80 and greater indicate water quality met expectations and are of lowest concern.
A4: Limitations
A5: Indexes by design contain less information than the raw data that they summarize; many uses of water quality data cannot be met with an index. An index is most useful for comparative purposes (what stations have particularly poor water quality compared to expectations?) and for general questions (how is water quality in my stream?). Indexes are less suited to specific questions. Site-specific decisions should be based on an analysis of the original water quality data. This index should not be used to compare stations unless expectations are the same. In short, an index is a useful tool for "communicating water quality information to the lay public and to legislative decision makers;" it is not "a complex predictive model for technical and scientific application" (McClelland, 1974).
A7: Besides being general in nature (imprecise), there are at least two reasons that any index may fail to accurately communicate water quality information. First, this index, like most indexes, is based on a pre-identified set of water quality constituents. A particular station may receive a good WQI score, and yet have water quality impaired by constituents not included in the index. Second, aggregation of data may mask short-term water quality problems. A satisfactory WQI at a particular station does not necessarily mean that water quality was always satisfactory. A good score should, however, indicate that poor water quality (for evaluated constituents, at least) was not chronic.
A8: Directions
A9: This spreadsheet is designed to convert and aggregate results from grab samples from a single station and a single year to index scores (up to 12 samples). Scores must be determined separately for additional stations or years. Twelve monthly samples are not required. Scores may be based on as little as a single sample--though this, of course, may not be sufficiently representative to accurately assess water quality.
A11: There are six tabs. The first, this one, contains instructions and narrative information. The second "Main" tab is where you enter your data and view the index scores. The third "Interim Results" tab shows scores for each individual result. The fourth "Curves" tab contains the equations used to calculate scores. The fifth "Worksheet" tab is for you to use as you wish. I have used it to convert some data in text format (bottom) to numbers (top), which can then be copied to the main tab (paste special/values)--or, as in this example, the main tab is set to equal the values in the worksheet. The last "1997Curves" tab are the equations used in previous versions of the WQI that are based on Ecology's 1997 Water Quality Standards.
A13: Under the "Main" tab:
A14: 1. Enter the station's Aquatic Life and Recreation Uses (e.g., Core/Primary; See WAC 173-201A) and Ecoregion (1-4, 6-9).
A15: 2. Select Yes if you want to use the small Puget Sound streams TN and TP curves and No to use the standard TN and TP curves. The small PS curves were developed using data from King County and the City of Redmond to reflect what they consider to be naturally high TN/TP concentrations in their small streams. (Only the summer TP curves are unique to small PS streams.) Although developed for small streams in Ecoregion 2 (Puget Sound), you may try using these curves if you believe your TN and summer TP scores are unrealistically low (poor).
A16: 3. Enter the data for the year being evaluated. We use water years, but the index may be calculated on a calendar year basis.
A17: 4. Edit the "Curve to Use" numbers if desired (see the "Curves" tab). You may want to do this if there is a station-specific criterion different than the standard class criterion (some special curves are available in the "Curves" tab; you may also add your own, though you will have to unlock the worksheet to edit this tab). You might also want to change the curve numbers if you believe the default curves do not accurately reflect expected conditions for your stream. Or, for example, you may want to use the small PS TN curves but keep the standard TP curves. Keep in mind, however, that if you do not use the standard curve numbers, your results will not be comparable with other stations where standard curves were used.
A18: 5. Click the "Calc Interim WQI Scores" button. This converts individual sample results to scores (stored under the "Interim Results" tab) and aggregates monthly scores.
A19: 6. Click the "Calc Constituent & Overall Scores" button. This aggregates the constituent scores and determines the overall score.
A20: If you have trouble
A21: Make sure your data are entered as numbers and not as text.
A22: If you have added your own criteria curves, you must sort the "Curves" worksheet by parameter.
A23: Make sure you have enabled macros. You may also need to set security to "low" (Tools/Macro/Security)
A24: Contact me (see below)
A25: For more information
A26: There is an overview of the WQI on the web here: http://www.ecy.wa.gov/programs/eap/fw_riv/docs/WQIOverview.html. A detailed description is here: http://www.ecy.wa.gov/biblio/0203052.html. You may contact Markus Von Prause at mvon461@ecy.wa.gov or 360 407-6681. You may download the most recent version of this application here: http://www.ecy.wa.gov/programs/eap/fw_riv/docs/WQIVer6.xls
A27: Change History
A28: 11/19/02: Fixed a "divide by zero" error when no data were entered for a particular constituent or month.
A29: 11/19/02: Changed title of "Calc Individual WQI scores" button to "Calc Interim WQI scores"
A30: 11/19/02: Added text to instructions to clarify that security must be set to "low"/macros must be enabled to run the code.
A31: 12/13/02: Limited monthly scores to 1. (Overall score was also being miscalculated when monthly scores were <1.)
A32: 09/10/03: Modified code to use similar ecoregions for ecoregions where there were insufficient data to develop curves. Added error handling for unrecognized stream class and ecoregion.
A33: 06/25/04: Was behaving badly if some dates were missing. Modified code to correct this (re-sorting by original date order after determining minimum scores). This correction is released in version 3c.
A34: 06/03/2008: The curves that convert results to WQI scores for TP, TSS, temp, and Turb bend back down at very low results (e.g., TP<0.001mg/L), resulting in poorer than expected WQI scores. Added code to set WQI=100 for these constituents when results < 0.003, 1, 5, and 1, respectively.
A35: 02/20/2009: Modified curves and curve selection procedures to incorporate 2006 water quality standards. This version is released as WQIVer4. Supplemental criteria have not been implemented in the spreadsheet, yet, though curves are available on the "curves" tab.
A36: 03/30/2009: Corrected some "comments". No substantive changes.
A37: 07/01/2009: Major Change: Added supplemental spawning curves and dropdown to select them. Also adapted code: previous date range had been based on whole months (01/01 represented January). Sup curves include partial months (e.g., 02/15) so changed curves to decimal months. Corrected bug that resulted in some missing data being given WQI scores of 100. Corrected and tweaked some other curves to more closely match criteria at WQI=80. This version is released as WQIVer5.
A38: 3/1/2014: Corrected a bug that was preventing non-standard curves from being used (i.e., curves in main tab row 10 rather than row 11 were being used). Also combined the spreadsheet for Small Puget Sound streams with the standard WQI spreadsheet by adding the small PS streams TN and TP curves and a metadata option to select those curves.

Sheet Main
A1: A Water Quality Index for Washington State streams (Version 6: 2014.06.11).
A2: Station: | C2: 05B070 | J2: KEY
A3: Recreation Use: | C3: Primary | J3: Input
A4: Aquatic Life (Temperature): | C4: Core(16) | J4: Low Concern
A5: Aquatic Life (Oxygen): | C5: Core | J5: Moderate Concern
A6: Supplemental Spawning: | C6: 09/01 to 07/01 | J6: High Concern
A7: Ecoregion: | C7: 2 | G7: OutSeason | H7: =IF(class="Core(16)",5,IF(class="Special(20)",3,4)) -> 5
A8: Small Puget Sound Stream: | C8: Yes | G8: SupSpawn | H8: =H7 & IF(VLOOKUP(C6,Curves!$C$235:$D$253,2,FALSE)<10, 0,) & VLOOKUP(C6,Curves!$C$235:$D$253,2,FALSE) -> 514
C9: Warning: The Small PS streams setting was designed for Ecoregion 2 streams.
B10: Default Curve No.: | C10: =VLOOKUP($C$3,Curves!$C$215:$D$217,2,FALSE) -> 51 | D10: =VLOOKUP($C$5,Curves!$C$220:$D$225,2,FALSE) -> 26 | E10: 41 | F10: =IF($C$8="Yes",272,VLOOKUP($C$7,Curves!$C$256:$D$263,2,FALSE)) -> 272 | G10: =VLOOKUP($C$7,Curves!$C$286:$D$293,2,FALSE) -> 82 | H10: =IF(C4="Char(12)",7,IF(VLOOKUP(C6,Curves!$C$235:$D$253,2,FALSE)=0,VLOOKUP(class,Curves!$C$228:$D$233,2,FALSE),H8)) -> 514 | I10: =IF($C$8="Yes",262,VLOOKUP($C$7,Curves!$C$266:$D$273,2,FALSE)) -> 262 | J10: =VLOOKUP($C$7,Curves!$C$276:$D$283,2,FALSE) -> 92
B11: Curve to Use: | C11: =C10 -> 51 | D11: =D10 -> 26 | E11: 41 | F11: 272 | G11: 82 | H11: 514 | I11: =I10 -> 262 | J11: 92
C12: FC | D12: Oxygen | E12: pH | F12: TP | G12: TSS | H12: Temp | I12: TN | J12: Turbidity | K12: Monthly
B13: Date | C13: col/100mL | D13: mg/L | E13: std. Units | F13: mg/L | G13: mg/L | H13: C | I13: mg/L | J13: NTU | K13: Scores
B14: 2009-10-20 | C14: 25 | D14: 10.19 | E14: 7.16 | F14: 0.0449 | G14: 24 | H14: 9.7 | I14: 0.149 | J14: 14 | K14: ='Interim Results'!O14 -> 81.07341674
B15: 2009-11-17 | C15: 33 | D15: 12 | F15: 0.477 | G15: 529 | H15: 6 | I15: 2.31 | J15: 300 | K15: ='Interim Results'!O15 -> 32.65111955
B16: 2009-12-15 | C16: 8 | D16: 13.1 | E16: 7.44 | F16: 0.0228 | G16: 10 | H16: 3.1 | I16: 3.438 | J16: 7.4 | K16: ='Interim Results'!O16 -> 96.7792191
B17: 2010-01-26 | C17: 1 | D17: 12.6 | E17: 7.37 | F17: 0.0143 | G17: 6 | H17: 4.7 | I17: 1.02 | J17: 6.1 | K17: ='Interim Results'!O17 -> 98.30135481
B18: 2010-02-23 | C18: 1 | D18: 13.3 | E18: 7.57 | F18: 0.0116 | G18: 4 | H18: 5.1 | I18: 0.527 | J18: 2.7 | K18: ='Interim Results'!O18 -> 99.68457271
B19: 2010-03-16 | C19: 2 | D19: 12.5 | E19: 7.48 | F19: 0.0113 | G19: 6 | H19: 7.4 | I19: 0.338 | J19: 5.1 | K19: ='Interim Results'!O19 -> 98.8255295
B20: 2010-04-20 | C20: 4 | D20: 12.4 | E20: 7.18 | F20: 0.0204 | G20: 17 | H20: 7.5 | I20: 0.328 | J20: 12 | K20: ='Interim Results'!O20 -> 95.30468739
B21: 2010-05-18 | C21: 7 | D21: 11.4 | E21: 7.51 | F21: 0.0108 | G21: 6 | H21: 10.3 | I21: 2 | J21: 3.8 | K21: ='Interim Results'!O21 -> 97.01545076
B22: 2010-06-22 | C22: 2 | D22: 10.9 | E22: 7.6 | F22: 0.0081 | G22: 3 | H22: 14 | I22: 3 | J22: 1.9 | K22: ='Interim Results'!O22 -> 89.3357248
B23: 2010-07-27 | C23: 4 | D23: 10.3 | E23: 8.46 | F23: 0.5 | G23: 7 | H23: 20.1 | I23: 1.5 | J23: 2 | K23: ='Interim Results'!O23 -> 66.10251608
B24: 2010-08-24 | C24: 4 | D24: 10.9 | E24: 8.42 | F24: 0.0122 | G24: 2 | H24: 19.3 | I24: 3 | J24: 0.7 | K24: ='Interim Results'!O24 -> 81.46443288
B25: 2010-09-28 | C25: 44 | D25: 10.6 | E25: 7.21 | F25: 0.0394 | G25: 35 | H25: 15 | I25: 2 | J25: 22 | K25: ='Interim Results'!O25 -> 65.9927352
B26: Constituent Scores: | C26: 91 | D26: 87 | E26: 81 | F26: 32 | G26: 51 | H26: 64 | I26: 2 | J26: 50
J27: Overall Score: | K27: 55

Sheet Interim Results
B12: Interim Scores: Individual results converted to WQI scores. | K12: Nutrient | L12: Sediment | O12: Monthly
B13: =Main!B13 -> Date | C13: =Main!C12 -> FC | D13: =Main!D12 -> Oxygen | E13: =Main!E12 -> pH | F13: =Main!F12 -> TP | G13: =Main!G12 -> TSS | H13: =Main!H12 -> Temp | I13: =Main!I12 -> TN | J13: =Main!J12 -> Turbidity | K13: Score | L13: Score | M13: Penalty | N13: Count | O13: Score
A14: 1 | B14: =Main!B14 -> 2009-10-20 | C14: 92.88492801 | D14: 86.73162868 | E14: 95.19078317 | F14: 100 | G14: 67.02192571 | H14: 91.903843 | I14: 100 | J14: 70.42709283 | K14: =IF(Main!F14*Main!I14=0,MIN(F14,I14),IF(Main!I14/Main!F14<10,I14,IF(Main!I14/Main!F14>20,F14,MIN(F14,I14)))) -> 100 | L14: =IF(G14*J14=0,MAX(G14,J14),2/(1/G14+1/J14)) -> 68.6823294 | M14: =IF(AND(C14<80,C14>0),(85-C14)/2,0)+IF(AND(D14<80,D14>0),(85-D14)/2,0)+IF(AND(E14<80,E14>0),(85-E14)/2,0)+IF(AND(H14<80,H14>0),(85-H14)/2,0)+IF(AND(K14<80,K14>0),IF((85-K14)/2>20,20,(85-K14)/2),0)+IF(AND(L14<80,L14>0),IF((85-L14)/2>20,20,(85-L14)/2),0) -> 8.1588353 | N14: =COUNTIF(C14:E14,">0")+COUNTIF(H14:H14,">0")+COUNTIF(K14:L14,">0") -> 6 | O14: =IF(N14=0,0,IF((C14+D14+E14+H14+K14+L14)/N14-M14<1,1,(C14+D14+E14+H14+K14+L14)/N14-M14)) -> 81.07341674
A15: 2 | B15: =Main!B15 -> 2009-11-17 | C15: 90.71434608 | D15: 98.76832 | F15: 5.129667266 | G15: 25.06522808 | H15: 100 | I15: 47.70281048 | J15: 15.70826031 | K15: =IF(Main!F15*Main!I15=0,MIN(F15,I15),IF(Main!I15/Main!F15<10,I15,IF(Main!I15/Main!F15>20,F15,MIN(F15,I15)))) -> 47.70281048 | L15: 19.313095 | M15: 38.64859476 | N15: 5 | O15: 32.65111955
A16: 3 | B16: =Main!B16 -> 2009-12-15 | C16: 99.71867152 | D16: 100 | E16: 99.02367181 | F16: 90.31180826 | G16: 92.71614396 | H16: 100 | I16: 3.542610339 | J16: 90.55174366 | K16: =IF(Main!F16*Main!I16=0,MIN(F16,I16),IF(Main!I16/Main!F16<10,I16,IF(Main!I16/Main!F16>20,F16,MIN(F16,I16)))) -> 90.31180826 | L16: 91.62116299 | M16: 0 | N16: 6 | O16: 96.7792191
A17: 4 | B17: =Main!B17 -> 2010-01-26 | C17: 100 | D17: 100 | E17: 98.21137243 | F17: 97.15489208 | G17: 96.48176016 | H17: 100 | I17: 97.75849472 | J17: 92.48644082 | K17: =IF(Main!F17*Main!I17=0,MIN(F17,I17),IF(Main!I17/Main!F17<10,I17,IF(Main!I17/Main!F17>20,F17,MIN(F17,I17)))) -> 97.15489208 | L17: 94.44186435 | M17: 0 | N17: 6 | O17: 98.30135481
A18: 5 | B18: =Main!B18 -> 2010-02-23 | C18: 100 | D18: 100 | E18: 99.83867164 | F18: 99.68641545 | G18: 98.6681542 | H18: 100 | I18: 100 | J18: 98.49669331 | K18: =IF(Main!F18*Main!I18=0,MIN(F18,I18),IF(Main!I18/Main!F18<10,I18,IF(Main!I18/Main!F18>20,F18,MIN(F18,I18)))) -> 99.68641545 | L18: 98.5823492 | M18: 0 | N18: 6 | O18: 99.68457271
A19: 6 | B19: =Main!B19 -> 2010-03-16 | C19: 100 | D19: 100 | E19: 99.44416531 | F19: 99.97993314 | G19: 96.48176016 | H19: 98.250532 | I19: 100 | J19: 94.10497354 | K19: =IF(Main!F19*Main!I19=0,MIN(F19,I19),IF(Main!I19/Main!F19<10,I19,IF(Main!I19/Main!F19>20,F19,MIN(F19,I19)))) -> 99.97993314 | L19: 95.27854653 | M19: 0 | N19: 6 | O19: 98.8255295
A20: 7 | B20: =Main!B20 -> 2010-04-20 | C20: 100 | D20: 100 | E20: 95.51617987 | F20: 92.09372312 | G20: 87.61080313 | H20: 98.007875 | I20: 100 | J20: 84.85395764 | K20: =IF(Main!F20*Main!I20=0,MIN(F20,I20),IF(Main!I20/Main!F20<10,I20,IF(Main!I20/Main!F20>20,F20,MIN(F20,I20)))) -> 92.09372312 | L20: 86.21034633 | M20: 0 | N20: 6 | O20: 95.30468739
A21: 8 | B21: =Main!B21 -> 2010-05-18 | C21: 100 | D21: 95.6668588 | E21: 100 | F21: 100 | G21: 96.48176016 | H21: 89.984923 | I21: 59.7752 | J21: 96.40011997 | K21: =IF(Main!F21*Main!I21=0,MIN(F21,I21),IF(Main!I21/Main!F21<10,I21,IF(Main!I21/Main!F21>20,F21,MIN(F21,I21)))) -> 100 | L21: 96.44092279 | M21: 0 | N21: 6 | O21: 97.01545076
A22: 9 | B22: =Main!B22 -> 2010-06-22 | C22: 100 | D22: 92.4091243 | E22: 99.4509936 | F22: 100 | G22: 96.68360689 | H22: 75.7444 | I22: 1 | J22: 95.67494404 | K22: =IF(Main!F22*Main!I22=0,MIN(F22,I22),IF(Main!I22/Main!F22<10,I22,IF(Main!I22/Main!F22>20,F22,MIN(F22,I22)))) -> 100 | L22: 96.17663092 | M22: 4.6278 | N22: 6 | O22: 89.3357248
A23: 10 | B23: =Main!B23 -> 2010-07-27 | C23: 100 | D23: 87.6920227 | E23: 81.19569328 | F23: 1 | G23: 85.3263499 | H23: 63.7229351 | I23: 73.207 | J23: 95.2324101 | K23: =IF(Main!F23*Main!I23=0,MIN(F23,I23),IF(Main!I23/Main!F23<10,I23,IF(Main!I23/Main!F23>20,F23,MIN(F23,I23)))) -> 73.207 | L23: 90.00764013 | M23: 16.53503245 | N23: 6 | O23: 66.10251608
A24: 11 | B24: =Main!B24 -> 2010-08-24 | C24: 100 | D24: 92.4091243 | E24: 82.3508302 | F24: 100 | G24: 100 | H24: 67.2566607 | I24: 1 | J24: 100 | K24: =IF(Main!F24*Main!I24=0,MIN(F24,I24),IF(Main!I24/Main!F24<10,I24,IF(Main!I24/Main!F24>20,F24,MIN(F24,I24)))) -> 100 | L24: 100 | M24: 8.87166965 | N24: 6 | O24: 81.46443288
A25: 12 | B25: =Main!B25 -> 2010-09-28 | C25: 88.25623257 | D25: 90.1607308 | E25: 95.98938485 | F25: 100 | G25: 60.99302496 | H25: 71.1845 | I25: 34.708 | J25: 62.42973054 | K25: =IF(Main!F25*Main!I25=0,MIN(F25,I25),IF(Main!I25/Main!F25<10,I25,IF(Main!I25/Main!F25>20,F25,MIN(F25,I25)))) -> 100 | L25: 61.70301575 | M25: 18.55624213 | N25: 6 | O25: 65.9927352

Sheet Curves
A1: ParamClassID | B1: param | C1: WQIClass | D1: Glacial | E1: Criterion | F1: Start Month | G1: End Month | H1: LowerResult | I1: UpperResult | J1: a | K1: b | L1: b2 | M1: Comments
A2: 51 | B2: FC | C2: Primary | D2: FALSE | E2: 100 | F2: 1 | G2: 13 | H2: 0 | I2: 999999 | J2: 103.59 | K2: 0.810055 | L2: -1.28485 | M2: WQI=LN(x)
A3: 52 | B3: FC | C3: Secondary | D3: FALSE | E3: 200 | F3: 1 | G3: 13 | H3: 0 | I3: 999999 | J3: 102.944 | K3: 2.59723 | L3: -1.30612 | M3: WQI=LN(x)
A4: 53 | B4: FC | C4: Extraordinary | D4: FALSE | E4: 50 | F4: 1 | G4: 13 | H4: 0 | I4: 999999 | J4: 103.05 | K4: -0.5832 | L4: -1.35641 | M4: WQI=LN(x)
A5: 21 | B5: Oxygen | C5: Spawning | D5: FALSE | E5: 8 | F5: 1 | G5: 13 | H5: 0 | I5: 12 | J5: -67.0255 | K5: 27.5473 | L5: -1.14663
A6: 21 | B6: Oxygen | C6: Spawning | D6: FALSE | E6: 8 | F6: 1 | G6: 13 | H6: 12.001 | I6: 99 | J6: 100 | K6: 0 | L6: 0
A7: 22 | B7: Oxygen | C7: Rearing | D7: FALSE | E7: 6.5 | F7: 1 | G7: 13 | H7: 0 | I7: 8.5 | J7: -109.509 | K7: 43.6529 | L7: -2.23081
A8: 22 | B8: Oxygen | C8: Rearing | D8: FALSE | E8: 6.5 | F8: 1 | G8: 13 | H8: 8.501 | I8: 99 | J8: 100 | K8: 0 | L8: 0
A9: 23 | B9: Oxygen | C9: Char | D9: FALSE | E9: 9.5 | F9: 1 | G9: 13 | H9: 12.501 | I9: 99 | J9: 100 | K9: 0 | L9: 0
A10: 23 | B10: Oxygen | C10: Char | D10: FALSE | E10: 9.5 | F10: 1 | G10: 13 | H10: 0 | I10: 12.5 | J10: -130.7 | K10: 33.81 | L10: -1.22397
A11: 24 | B11: Oxygen | C11: S1 | D11: FALSE | E11: 8 | F11: 9.5 | G11: 13 | H11: 12.001 | I11: 99 | J11: 100 | K11: 0 | L11: 0
A12: 24 | B12: Oxygen | C12: S1 | D12: FALSE | E12: 8 | F12: 9.5 | G12: 13 | H12: 0 | I12: 12 | J12: -67.0255 | K12: 27.5473 | L12: -1.14663
A13: 24 | B13: Oxygen | C13: S1 | D13: FALSE | E13: 5 | F13: 6 | G13: 9.5 | H13: 7.501 | I13: 99 | J13: 100 | K13: 0 | L13: 0
A14: 24 | B14: Oxygen | C14: S1 | D14: FALSE | E14: 5 | F14: 6 | G14: 9.5 | H14: 0 | I14: 7.5 | J14: -64.4444 | K14: 42.7778 | L14: -2.7778 | M14: Limited to >5.0 Jun1 through Sep15. (This evaluates ALL of Sep against 5.0 criterion)
A15: 24 | B15: Oxygen | C15: S1 | D15: FALSE | E15: 8 | F15: 1 | G15: 6 | H15: 0 | I15: 12 | J15: -67.0255 | K15: 27.5473 | L15: -1.14663
A16: 24 | B16: Oxygen | C16: S1 | D16: FALSE | E16: 8 | F16: 1 | G16: 6 | H16: 12.001 | I16: 99 | J16: 100 | K16: 0 | L16: 0
A17: 25 | B17: Oxygen | C17: S2 | D17: FALSE | E17: 5 | F17: 1 | G17: 13 | H17: 0 | I17: 7.5 | J17: -64.4444 | K17: 42.7778 | L17: -2.7778 | M17: Limited to >5.0 year round
A18: 25 | B18: Oxygen | C18: S2 | D18: FALSE | E18: 5 | F18: 1 | G18: 13 | H18: 7.501 | I18: 99 | J18: 100 | K18: 0 | L18: 0
A19: 26 | B19: Oxygen | C19: Core | D19: FALSE | E19: 9.5 | F19: 1 | G19: 13 | H19: 0 | I19: 12.5 | J19: -130.7 | K19: 33.81 | L19: -1.22397
A20: 26 | B20: Oxygen | C20: Core | D20: FALSE | E20: 9.5 | F20: 1 | G20: 13 | H20: 12.5 | I20: 99 | J20: 100 | K20: 0 | L20: 0
A21: 41 | B21: pH | C21: All Uses | D21: FALSE | E21: 8.5 | F21: 1 | G21: 13 | H21: 7.501 | I21: 9.9 | J21: -339.162 | K21: 128.627 | L21: -9.33089
A22: 41 | B22: pH | C22: All Uses | D22: FALSE | E22: 6.5 | F22: 1 | G22: 13 | H22: 4 | I22: 7.5 | J22: -531.622 | K22: 158.619 | L22: -9.92672
A23: 81 | B23: SUSSOL | C23: 1 | D23: No | E23: 0 | F23: 1 | G23: 6 | H23: 0 | I23: 999999 | J23: 100.7321 | K23: -5.17377 | L23: -1.31478 | M23: WQI=LN(x)
A24: 81 | B24: SUSSOL | C24: 1 | D24: No | E24: 0 | F24: 6 | G24: 11 | H24: 0 | I24: 999999 | J24: 102.3444 | K24: -19.28875 | L24: 0.087332 | M24: WQI=LN(x)
A25: 81 | B25: SUSSOL | C25: 1 | D25: No | E25: 0 | F25: 11 | G25: 13 | H25: 0 | I25: 999999 | J25: 100.7321 | K25: -5.17377 | L25: -1.31478 | M25: WQI=LN(x)
A26: 82 | B26: SUSSOL | C26: 2 | D26: No | E26: 0 | F26: 1 | G26: 6 | H26: 0 | I26: 999999 | J26: 100.7779 | K26: 1.47273 | L26: -2.16014 | M26: WQI=LN(x)
A27: 82 | B27: SUSSOL | C27: 2 | D27: No | E27: 0 | F27: 6 | G27: 11 | H27: 0 | I27: 999999 | J27: 109.9171 | K27: -11.2787 | L27: -0.698103 | M27: WQI=LN(x)
A28: 82 | B28: SUSSOL | C28: 2 | D28: No | E28: 0 | F28: 11 | G28: 13 | H28: 0 | I28: 999999 | J28: 100.7779 | K28: 1.47273 | L28: -2.16014 | M28: WQI=LN(x)
A29: 83 | B29: SUSSOL | C29: 4 | D29: No | E29: 0 | F29: 1 | G29: 6 | H29: 0 | I29: 999999 | J29: 100.9078 | K29: -7.1956 | L29: -2.26536 | M29: WQI=LN(x)
A30: 83 | B30: SUSSOL | C30: 4 | D30: No | E30: 0 | F30: 6 | G30: 11 | H30: 0 | I30: 999999 | J30: 102.5005 | K30: -26.039 | L30: -0.768096 | M30: WQI=LN(x)
A31: 83 | B31: SUSSOL | C31: 4 | D31: No | E31: 0 | F31: 11 | G31: 13 | H31: 0 | I31: 999999 | J31: 100.9078 | K31: -7.1956 | L31: -2.26536 | M31: WQI=LN(x)
A32: 84 | B32: SUSSOL | C32: 7 | D32: No | E32: 0 | F32: 1 | G32: 6 | H32: 0 | I32: 999999 | J32: 101.1482 | K32: -4.23136 | L32: -1.33006 | M32: WQI=LN(x)
A33: 84 | B33: SUSSOL | C33: 7 | D33: No | E33: 0 | F33: 6 | G33: 11 | H33: 0 | I33: 999999 | J33: 100.2034 | K33: 8.49706 | L33: -5.17937 | M33: WQI=LN(x)
A34: 84 | B34: SUSSOL | C34: 7 | D34: No | E34: 0 | F34: 11 | G34: 13 | H34: 0 | I34: 999999 | J34: 101.1482 | K34: -4.23136 | L34: -1.33006 | M34: WQI=LN(x)
A35: 85 | B35: SUSSOL | C35: 8 | D35: No | E35: 0 | F35: 1 | G35: 6 | H35: 0 | I35: 999999 | J35: 102.687 | K35: -17.5256 | L35: 0.467769 | M35: WQI=LN(x)
A36: 85 | B36: SUSSOL | C36: 8 | D36: No | E36: 0 | F36: 6 | G36: 11 | H36: 0 | I36: 999999 | J36: 101.9152 | K36: -17.2765 | L36: -1.39424 | M36: WQI=LN(x)
A37: 85 | B37: SUSSOL | C37: 8 | D37: No | E37: 0 | F37: 11 | G37: 13 | H37: 0 | I37: 999999 | J37: 102.687 | K37: -17.5256 | L37: 0.467769 | M37: WQI=LN(x)
A38: 6 | B38: Temp | C38: Special(21) | D38: NA | E38: 21 | F38: 1 | G38: 13 | H38: -9 | I38: 99 | J38: 88.1234 | K38: 3.9808 | L38: -0.207885
A39: 7 | B39: Temp | C39: Char(12) | D39: NA | E39: 12 | F39: 1 | G39: 13 | H39: -9 | I39: 99 | J39: 103.85 | K39: -0.1722 | L39: -0.1513
A40: 8 | B40: Temp | C40: Core(16) | D40: NA | E40: 16 | F40: 1 | G40: 13 | H40: -9 | I40: 99 | J40: 99.92 | K40: 0.923907 | L40: -0.13556
A41: 9 | B41: Temp | C41: Spawn(17.5) | D41: NA | E41: 17.5 | F41: 1 | G41: 13 | H41: -9 | I41: 99 | J41: 105.345 | K41: 0.923907 | L41: -0.13556
A42: 10 | B42: Temp | C42: Rear(17.5) | D42: NA | E42: 17.5 | F42: 1 | G42: 13 | H42: -9 | I42: 99 | J42: 105.345 | K42: 0.923907 | L42: -0.13556
A43: 13 | B43: Temp | C43: Special(20) | D43: NA | E43: 20 | F43: 1 | G43: 13 | H43: -9 | I43: 99 | J43: 104.8229 | K43: 2.00886 | L43: -0.162453
A44: 301 | B44: Temp | C44: SpecialSupSalm | D44: NA | E44: 20 | F44: 1 | G44: 2.5 | H44: -9 | I44: 99 | J44: 104.8229 | K44: 2.00886 | L44: -0.162453 | M44: Special Temp Exception with Sup Salm spawning | N44: =VALUE(TRIM(SUBSTITUTE(E44,CHAR(160),CHAR(32))) ) -> 20
A45: 301 | B45: Temp | C45: SpecialSupSalm | D45: NA | E45: 13 | F45: 2.5 | G45: 6 | H45: -9 | I45: 99 | J45: 107.81 | K45: -0.1722 | L45: -0.1513 | M45: Special Temp Exception with Sup Salm spawning
A46: 301 | B46: Temp | C46: SpecialSupSalm | D46: NA | E46: 20 | F46: 6 | G46: 13 | H46: -9 | I46: 99 | J46: 104.8229 | K46: 2.00886 | L46: -0.162453 | M46: Special Temp Exception with Sup Salm spawning
A47: 401 | B47: Temp | C47: SpawnSupSalm | D47: NA | E47: 17.5 | F47: 1 | G47: 2.5 | H47: -9 | I47: 99 | J47: 105.345 | K47: 0.923907 | L47: -0.13556 | M47: Spawning with Sup Salm spawning
A48: 401 | B48: Temp | C48: SpawnSupSalm | D48: NA | E48: 13 | F48: 2.5 | G48: 6 | H48: -9 | I48: 99 | J48: 107.81 | K48: -0.1722 | L48: -0.1513 | M48: Spawning with Sup Salm spawning
A49: 401 | B49: Temp | C49: SpawnSupSalm | D49: NA | E49: 17.5 | F49: 6 | G49: 13 | H49: -9 | I49: 99 | J49: 105.345 | K49: 0.923907 | L49: -0.13556 | M49: Spawning with Sup Salm spawning
A50: 402 | B50: Temp | C50: SpawnSupSalm | D50: NA | E50: 17.5 | F50: 1 | G50: 2.5 | H50: -9 | I50: 99 | J50: 105.345 | K50: 0.923907 | L50: -0.13556 | M50: Spawning with Sup Salm spawning
A51: 402 | B51: Temp | C51: SpawnSupSalm | D51: NA | E51: 13 | F51: 2.5 | G51: 6.5 | H51: -9 | I51: 99 | J51: 107.81 | K51: -0.1722 | L51: -0.1513 | M51: Spawning with Sup Salm spawning
A52: 402 | B52: Temp | C52: SpawnSupSalm | D52: NA | E52: 17.5 | F52: 6.5 | G52: 13 | H52: -9 | I52: 99 | J52: 105.345 | K52: 0.923907 | L52: -0.13556 | M52: Spawning with Sup Salm spawning
A53: 403 | B53: Temp | C53: SpawnSupSalm | D53: NA | E53: 17.5 | F53: 1 | G53: 2.5 | H53: -9 | I53: 99 | J53: 105.345 | K53: 0.923907 | L53: -0.13556 | M53: Spawning with Sup Salm spawning
A54: 403 | B54: Temp | C54: SpawnSupSalm | D54: NA | E54: 13 | F54: 2.5 | G54: 7 | H54: -9 | I54: 99 | J54: 107.81 | K54: -0.1722 | L54: -0.1513 | M54: Spawning with Sup Salm spawning
A55: 403 | B55: Temp | C55: SpawnSupSalm | D55: NA | E55: 17.5 | F55: 7 | G55: 13 | H55: -9 | I55: 99 | J55: 105.345 | K55: 0.923907 | L55: -0.13556 | M55: Spawning with Sup Salm spawning
A56: 404 | B56: Temp | C56: SpawnSupSalm | D56: NA | E56: 13 | F56: 1 | G56: 5.5 | H56: -9 | I56: 99 | J56: 107.81 | K56: -0.1722 | L56: -0.1513 | M56: Spawning with Sup Salm spawning
A57: 404 | B57: Temp | C57: SpawnSupSalm | D57: NA | E57: 17.5 | F57: 5.5 | G57: 8.5 | H57: -9 | I57: 99 | J57: 105.345 | K57: 0.923907 | L57: -0.13556 | M57: Spawning with Sup Salm spawning
A58: 404 | B58: Temp | C58: SpawnSupSalm | D58: NA | E58: 13 | F58: 8.5 | G58: 13 | H58: -9 | I58: 99 | J58: 107.81 | K58: -0.1722 | L58: -0.1513 | M58: Spawning with Sup Salm spawning
A59: 405 | B59: Temp | C59: SpawnSupSalm | D59: NA | E59: 13 | F59: 1 | G59: 5.5 | H59: -9 | I59: 99 | J59: 107.81 | K59: -0.1722 | L59: -0.1513 | M59: Spawning with Sup Salm spawning
A60: 405 | B60: Temp | C60: SpawnSupSalm | D60: NA | E60: 17.5 | F60: 5.5 | G60: 9 | H60: -9 | I60: 99 | J60: 105.345 | K60: 0.923907 | L60: -0.13556 | M60: Spawning with Sup Salm spawning
A61: 405 | B61: Temp | C61: SpawnSupSalm | D61: NA | E61: 13 | F61: 9 | G61: 13 | H61: -9 | I61: 99 | J61: 107.81 | K61: -0.1722 | L61: -0.1513 | M61: Spawning with Sup Salm spawning
A62: 406 | B62: Temp | C62: SpawnSupSalm | D62: NA | E62: 13 | F62: 1 | G62: 5.5 | H62: -9 | I62: 99 | J62: 107.81 | K62: -0.1722 | L62: -0.1513 | M62: Spawning with Sup Salm spawning
A63: 406 | B63: Temp | C63: SpawnSupSalm | D63: NA | E63: 17.5 | F63: 5.5 | G63: 9.5 | H63: -9 | I63: 99 | J63: 105.345 | K63: 0.923907 | L63: -0.13556 | M63: Spawning with Sup Salm spawning
A64: 406 | B64: Temp | C64: SpawnSupSalm | D64: NA | E64: 13 | F64: 9.5 | G64: 13 | H64: -9 | I64: 99 | J64: 107.81 | K64: -0.1722 | L64: -0.1513 | M64: Spawning with Sup Salm spawning
A65: 407 | B65: Temp | C65: SpawnSupSalm | D65: NA | E65: 13 | F65: 1 | G65: 5.5 | H65: -9 | I65: 99 | J65: 107.81 | K65: -0.1722 | L65: -0.1513 | M65: Spawning with Sup Salm spawning
A66: 407 | B66: Temp | C66: SpawnSupSalm | D66: NA | E66: 17.5 | F66: 5.5 | G66: 10 | H66: -9 | I66: 99 | J66: 105.345 | K66: 0.923907 | L66: -0.13556 | M66: Spawning with Sup Salm spawning
A67: 407 | B67: Temp | C67: SpawnSupSalm | D67: NA | E67: 13 | F67: 10 | G67: 13 | H67: -9 | I67: 99 | J67: 107.81 | K67: -0.1722 | L67: -0.1513 | M67: Spawning with Sup Salm spawning
A68: 408 | B68: Temp | C68: SpawnSupSalm | D68: NA | E68: 13 | F68: 1 | G68: 6.5 | H68: -9 | I68: 99 | J68: 107.81 | K68: -0.1722 | L68: -0.1513 | M68: Spawning with Sup Salm spawning
A69: 408 | B69: Temp | C69: SpawnSupSalm | D69: NA | E69: 17.5 | F69: 6.5 | G69: 8 | H69: -9 | I69: 99 | J69: 105.345 | K69: 0.923907 | L69: -0.13556 | M69: Spawning with Sup Salm spawning
A70: 408 | B70: Temp | C70: SpawnSupSalm | D70: NA | E70: 13 | F70: 8 | G70: 13 | H70: -9 | I70: 99 | J70: 107.81 | K70: -0.1722 | L70: -0.1513 | M70: Spawning with Sup Salm spawning
A71: 409 | B71: Temp | C71: SpawnSupSalm | D71: NA | E71: 13 | F71: 1 | G71: 6.5 | H71: -9 | I71: 99 | J71: 107.81 | K71: -0.1722 | L71: -0.1513 | M71: Spawning with Sup Salm spawning
A72: 409 | B72: Temp | C72: SpawnSupSalm | D72: NA | E72: 17.5 | F72: 6.5 | G72: 8.5 | H72: -9 | I72: 99 | J72: 105.345 | K72: 0.923907 | L72: -0.13556 | M72: Spawning with Sup Salm spawning
A73: 409 | B73: Temp | C73: SpawnSupSalm | D73: NA | E73: 13 | F73: 8.5 | G73: 13 | H73: -9 | I73: 99 | J73: 107.81 | K73: -0.1722 | L73: -0.1513 | M73: Spawning with Sup Salm spawning
A74: 410 | B74: Temp | C74: SpawnSupSalm | D74: NA | E74: 13 | F74: 1 | G74: 6.5 | H74: -9 | I74: 99 | J74: 107.81 | K74: -0.1722 | L74: -0.1513 | M74: Spawning with Sup Salm spawning
A75: 410 | B75: Temp | C75: SpawnSupSalm | D75: NA | E75: 17.5 | F75: 6.5 | G75: 9 | H75: -9 | I75: 99 | J75: 105.345 | K75: 0.923907 | L75: -0.13556 | M75: Spawning with Sup Salm spawning
A76: 410 | B76: Temp | C76: SpawnSupSalm | D76: NA | E76: 13 | F76: 9 | G76: 13 | H76: -9 | I76: 99 | J76: 107.81 | K76: -0.1722 | L76: -0.1513 | M76: Spawning with Sup Salm spawning
A77: 411 | B77: Temp | C77: SpawnSupSalm | D77: NA | E77: 13 | F77: 1 | G77: 6.5 | H77: -9 | I77: 99 | J77: 107.81 | K77: -0.1722 | L77: -0.1513 | M77: Spawning with Sup Salm spawning
A78: 411 | B78: Temp | C78: SpawnSupSalm | D78: NA | E78: 17.5 | F78: 6.5 | G78: 9.5 | H78: -9 | I78: 99 | J78: 105.345 | K78: 0.923907 | L78: -0.13556 | M78: Spawning with Sup Salm spawning
A79: 411 | B79: Temp | C79: SpawnSupSalm | D79: NA | E79: 13 | F79: 9.5 | G79: 13 | H79: -9 | I79: 99 | J79: 107.81 | K79: -0.1722 | L79: -0.1513 | M79: Spawning with Sup Salm spawning
A80: 412 | B80: Temp | C80: SpawnSupSalm | D80: NA | E80: 13 | F80: 1 | G80: 6.5 | H80: -9 | I80: 99 | J80: 107.81 | K80: -0.1722 | L80: -0.1513 | M80: Spawning with Sup Salm spawning
A81: 412 | B81: Temp | C81: SpawnSupSalm | D81: NA | E81: 17.5 | F81: 6.5 | G81: 10 | H81: -9 | I81: 99 | J81: 105.345 | K81: 0.923907 | L81: -0.13556 | M81: Spawning with Sup Salm spawning
A82: 412 | B82: Temp | C82: SpawnSupSalm | D82: NA | E82: 13 | F82: 10 | G82: 13 | H82: -9 | I82: 99 | J82: 107.81 | K82: -0.1722 | L82: -0.1513 | M82: Spawning with Sup Salm spawning
A83: 413 | B83: Temp | C83: SpawnSupSalm | D83: NA | E83: 13 | F83: 1 | G83: 7 | H83: -9 | I83: 99 | J83: 107.81 | K83: -0.1722 | L83: -0.1513 | M83: Spawning with Sup Salm spawning
A84: 413 | B84: Temp | C84: SpawnSupSalm | D84: NA | E84: 17.5 | F84: 7 | G84: 8.5 | H84: -9 | I84: 99 | J84: 105.345 | K84: 0.923907 | L84: -0.13556 | M84: Spawning with Sup Salm spawning
A85: 413 | B85: Temp | C85: SpawnSupSalm | D85: NA | E85: 13 | F85: 8.5 | G85: 13 | H85: -9 | I85: 99 | J85: 107.81 | K85: -0.1722 | L85: -0.1513 | M85: Spawning with Sup Salm spawning
A86: 414 | B86: Temp | C86: SpawnSupSalm | D86: NA | E86: 13 | F86: 1 | G86: 7 | H86: -9 | I86: 99 | J86: 107.81 | K86: -0.1722 | L86: -0.1513 | M86: Spawning with Sup Salm spawning
A87: 414 | B87: Temp | C87: SpawnSupSalm | D87: NA | E87: 17.5 | F87: 7 | G87: 9 | H87: -9 | I87: 99 | J87: 105.345 | K87: 0.923907 | L87: -0.13556 | M87: Spawning with Sup Salm spawning
A88: 414 | B88: Temp | C88: SpawnSupSalm | D88: NA | E88: 13 | F88: 9 | G88: 13 | H88: -9 | I88: 99 | J88: 107.81 | K88: -0.1722 | L88: -0.1513 | M88: Spawning with Sup Salm spawning
A89: 415 | B89: Temp | C89: SpawnSupSalm | D89: NA | E89: 13 | F89: 1 | G89: 7 | H89: -9 | I89: 99 | J89: 107.81 | K89: -0.1722 | L89: -0.1513 | M89: Spawning with Sup Salm spawning
A90: 415 | B90: Temp | C90: SpawnSupSalm | D90: NA | E90: 17.5 | F90: 7 | G90: 9.5 | H90: -9 | I90: 99 | J90: 105.345 | K90: 0.923907 | L90: -0.13556 | M90: Spawning with Sup Salm spawning
A91: 415 | B91: Temp | C91: SpawnSupSalm | D91: NA | E91: 13 | F91: 9.5 | G91: 13 | H91: -9 | I91: 99 | J91: 107.81 | K91: -0.1722 | L91: -0.1513 | M91: Spawning with Sup Salm spawning
A92: 416 | B92: Temp | C92: SpawnSupSalm | D92: NA | E92: 13 | F92: 1 | G92: 7.5 | H92: -9 | I92: 99 | J92: 107.81 | K92: -0.1722 | L92: -0.1513 | M92: Spawning with Sup Salm spawning
A93: 416 | B93: Temp | C93: SpawnSupSalm | D93: NA | E93: 17.5 | F93: 7.5 | G93: 8 | H93: -9 | I93: 99 | J93: 105.345 | K93: 0.923907 | L93: -0.13556 | M93: Spawning with Sup Salm spawning
A94: 416 | B94: Temp | C94: SpawnSupSalm | D94: NA | E94: 13 | F94: 8 | G94: 13 | H94: -9 | I94: 99 | J94: 107.81 | K94: -0.1722 | L94: -0.1513 | M94: Spawning with Sup Salm spawning
A95: 417 | B95: Temp | C95: SpawnSupSalm | D95: NA | E95: 13 | F95: 1 | G95: 7.5 | H95: -9 | I95: 99 | J95: 107.81 | K95: -0.1722 | L95: -0.1513 | M95: Spawning with Sup Salm spawning
A96: 417 | B96: Temp | C96: SpawnSupSalm | D96: NA | E96: 17.5 | F96: 7.5 | G96: 8.5 | H96: -9 | I96: 99 | J96: 105.345 | K96: 0.923907 | L96: -0.13556 | M96: Spawning with Sup Salm spawning
A97: 417 | B97: Temp | C97: SpawnSupSalm | D97: NA | E97: 13 | F97: 8.5 | G97: 13 | H97: -9 | I97: 99 | J97: 107.81 | K97: -0.1722 | L97: -0.1513 | M97: Spawning with Sup Salm spawning
A98: 418 | B98: Temp | C98: SpawnSupSalm | D98: NA | E98: 13 | F98: 1 | G98: 7.5 | H98: -9 | I98: 99 | J98: 107.81 | K98: -0.1722 | L98: -0.1513 | M98: Spawning with Sup Salm spawning
A99: 418 | B99: Temp | C99: SpawnSupSalm | D99: NA | E99: 17.5 | F99: 7.5 | G99: 9 | H99: -9 | I99: 99 | J99: 105.345 | K99: 0.923907 | L99: -0.13556 | M99: Spawning with Sup Salm spawning
A100: 418 | B100: Temp | C100: SpawnSupSalm | D100: NA | E100: 13 | F100: 9 | G100: 13 | H100: -9 | I100: 99 | J100: 107.81 | K100: -0.1722 | L100: -0.1513 | M100: Spawning with Sup Salm spawning
A101: 501 | B101: Temp | C101: CoreSupSalm | D101: NA | E101: 16 | F101: 1 | G101: 2.5 | H101: -9 | I101: 99 | J101: 99.92 | K101: 0.923907 | L101: -0.13556 | M101: Core with Sup salm spawning
A102: 501 | B102: Temp | C102: CoreSupSalm | D102: NA | E102: 13 | F102: 2.5 | G102: 6 | H102: -9 | I102: 99 | J102: 107.81 | K102: -0.1722 | L102: -0.1513 | M102: Core with Sup salm spawning
A103: 501 | B103: Temp | C103: CoreSupSalm | D103: NA | E103: 16 | F103: 6 | G103: 13 | H103: -9 | I103: 99 | J103: 99.92 | K103: 0.923907 | L103: -0.13556 | M103: Core with Sup salm spawning
A104: 502 | B104: Temp | C104: CoreSupSalm | D104: NA | E104: 16 | F104: 1 | G104: 2.5 | H104: -9 | I104: 99 | J104: 99.92 | K104: 0.923907 | L104: -0.13556 | M104: Core with Sup salm spawning
A105: 502 | B105: Temp | C105: CoreSupSalm | D105: NA | E105: 13 | F105: 2.5 | G105: 6.5 | H105: -9 | I105: 99 | J105: 107.81 | K105: -0.1722 | L105: -0.1513 | M105: Core with Sup salm spawning
A106: 502 | B106: Temp | C106: CoreSupSalm | D106: NA | E106: 16 | F106: 6.5 | G106: 13 | H106: -9 | I106: 99 | J106: 99.92 | K106: 0.923907 | L106: -0.13556 | M106: Core with Sup salm spawning
A107: 503 | B107: Temp | C107: CoreSupSalm | D107: NA | E107: 16 | F107: 1 | G107: 2.5 | H107: -9 | I107: 99 | J107: 99.92 | K107: 0.923907 | L107: -0.13556 | M107: Core with Sup salm spawning
A108: 503 | B108: Temp | C108: CoreSupSalm | D108: NA | E108: 13 | F108: 2.5 | G108: 7 | H108: -9 | I108: 99 | J108: 107.81 | K108: -0.1722 | L108: -0.1513 | M108: Core with Sup salm spawning
A109: 503 | B109: Temp | C109: CoreSupSalm | D109: NA | E109: 16 | F109: 7 | G109: 13 | H109: -9 | I109: 99 | J109: 99.92 | K109: 0.923907 | L109: -0.13556 | M109: Core with Sup salm spawning
A110: 504 | B110: Temp | C110: CoreSupSalm | D110: NA | E110: 13 | F110: 1 | G110: 5.5 | H110: -9 | I110: 99 | J110: 107.81 | K110: -0.1722 | L110: -0.1513 | M110: Core with Sup salm spawning
A111: 504 | B111: Temp | C111: CoreSupSalm | D111: NA | E111: 16 | F111: 5.5 | G111: 8.5 | H111: -9 | I111: 99 | J111: 99.92 | K111: 0.923907 | L111: -0.13556 | M111: Core with Sup salm spawning
A112: 504 | B112: Temp | C112: CoreSupSalm | D112: NA | E112: 13 | F112: 8.5 | G112: 13 | H112: -9 | I112: 99 | J112: 107.81 | K112: -0.1722 | L112: -0.1513 | M112: Core with Sup salm spawning
A113: 505 | B113: Temp | C113: CoreSupSalm | D113: NA | E113: 13 | F113: 1 | G113: 5.5 | H113: -9 | I113: 99 | J113: 107.81 | K113: -0.1722 | L113: -0.1513 | M113: Core with Sup salm spawning
A114: 505 | B114: Temp | C114: CoreSupSalm | D114: NA | E114: 16 | F114: 5.5 | G114: 9 | H114: -9 | I114: 99 | J114: 99.92 | K114: 0.923907 | L114: -0.13556 | M114: Core with Sup salm spawning
A115: 505 | B115: Temp | C115: CoreSupSalm | D115: NA | E115: 13 | F115: 9 | G115: 13 | H115: -9 | I115: 99 | J115: 107.81 | K115: -0.1722 | L115: -0.1513 | M115: Core with Sup salm spawning
A116: 506 | B116: Temp | C116: CoreSupSalm | D116: NA | E116: 13 | F116: 1 | G116: 5.5 | H116: -9 | I116: 99 | J116: 107.81 | K116: -0.1722 | L116: -0.1513 | M116: Core with Sup salm spawning
A117: 506 | B117: Temp | C117: CoreSupSalm | D117: NA | E117: 16 | F117: 5.5 | G117: 9.5 | H117: -9 | I117: 99 | J117: 99.92 | K117: 0.923907 | L117: -0.13556 | M117: Core with Sup salm spawning
A118: 506 | B118: Temp | C118: CoreSupSalm | D118: NA | E118: 13 | F118: 9.5 | G118: 13 | H118: -9 | I118: 99 | J118: 107.81 | K118: -0.1722 | L118: -0.1513 | M118: Core with Sup salm spawning
A119: 507 | B119: Temp | C119: CoreSupSalm | D119: NA | E119: 13 | F119: 1 | G119: 5.5 | H119: -9 | I119: 99 | J119: 107.81 | K119: -0.1722 | L119: -0.1513 | M119: Core with Sup salm spawning
A120: 507 | B120: Temp | C120: CoreSupSalm | D120: NA | E120: 16 | F120: 5.5 | G120: 10 | H120: -9 | I120: 99 | J120: 99.92 | K120: 0.923907 | L120: -0.13556 | M120: Core with Sup salm spawning
A121: 507 | B121: Temp | C121: CoreSupSalm | D121: NA | E121: 13 | F121: 10 | G121: 13 | H121: -9 | I121: 99 | J121: 107.81 | K121: -0.1722 | L121: -0.1513 | M121: Core with Sup salm spawning
A122: 508 | B122: Temp | C122: CoreSupSalm | D122: NA | E122: 13 | F122: 1 | G122: 6.5 | H122: -9 | I122: 99 | J122: 107.81 | K122: -0.1722 | L122: -0.1513 | M122: Core with Sup salm spawning
A123: 508 | B123: Temp | C123: CoreSupSalm | D123: NA | E123: 16 | F123: 6.5 | G123: 8 | H123: -9 | I123: 99 | J123: 99.92 | K123: 0.923907 | L123: -0.13556 | M123: Core with Sup salm spawning
A124: 508 | B124: Temp | C124: CoreSupSalm | D124: NA | E124: 13 | F124: 8 | G124: 13 | H124: -9 | I124: 99 | J124: 107.81 | K124: -0.1722 | L124: -0.1513 | M124: Core with Sup salm spawning
A125: 509 | B125: Temp | C125: CoreSupSalm | D125: NA | E125: 13 | F125: 1 | G125: 6.5 | H125: -9 | I125: 99 | J125: 107.81 | K125: -0.1722 | L125: -0.1513 | M125: Core with Sup salm spawning
A126: 509 | B126: Temp | C126: CoreSupSalm | D126: NA | E126: 16 | F126: 6.5 | G126: 8.5 | H126: -9 | I126: 99 | J126: 99.92 | K126: 0.923907 | L126: -0.13556 | M126: Core with Sup salm spawning
A127: 509 | B127: Temp | C127: CoreSupSalm | D127: NA | E127: 13 | F127: 8.5 | G127: 13 | H127: -9 | I127: 99 | J127: 107.81 | K127: -0.1722 | L127: -0.1513 | M127: Core with Sup salm spawning
A128: 510 | B128: Temp | C128: CoreSupSalm | D128: NA | E128: 13 | F128: 1 | G128: 6.5 | H128: -9 | I128: 99 | J128: 107.81 | K128: -0.1722 | L128: -0.1513 | M128: Core with Sup salm spawning
A129: 510 | B129: Temp | C129: CoreSupSalm | D129: NA | E129: 16 | F129: 6.5 | G129: 9 | H129: -9 | I129: 99 | J129: 99.92 | K129: 0.923907 | L129: -0.13556 | M129: Core with Sup salm spawning
A130: 510 | B130: Temp | C130: CoreSupSalm | D130: NA | E130: 13 | F130: 9 | G130: 13 | H130: -9 | I130: 99 | J130: 107.81 | K130: -0.1722 | L130: -0.1513 | M130: Core with Sup salm spawning
A131: 511 | B131: Temp | C131: CoreSupSalm | D131: NA | E131: 13 | F131: 1 | G131: 6.5 | H131: -9 | I131: 99 | J131: 107.81 | K131: -0.1722 | L131: -0.1513 | M131: Core with Sup salm spawning
A132: 511 | B132: Temp | C132: CoreSupSalm | D132: NA | E132: 16 | F132: 6.5 | G132: 9.5 | H132: -9 | I132: 99 | J132: 99.92 | K132: 0.923907 | L132: -0.13556 | M132: Core with Sup salm spawning
A133: 511 | B133: Temp | C133: CoreSupSalm | D133: NA | E133: 13 | F133: 9.5 | G133: 13 | H133: -9 | I133: 99 | J133: 107.81 | K133: -0.1722 | L133: -0.1513 | M133: Core with Sup salm spawning
A134: 512 | B134: Temp | C134: CoreSupSalm | D134: NA | E134: 13 | F134: 1 | G134: 6.5 | H134: -9 | I134: 99 | J134: 107.81 | K134: -0.1722 | L134: -0.1513 | M134: Core with Sup salm spawning
A135: 512 | B135: Temp | C135: CoreSupSalm | D135: NA | E135: 16 | F135: 6.5 | G135: 10 | H135: -9 | I135: 99 | J135: 99.92 | K135: 0.923907 | L135: -0.13556 | M135: Core with Sup salm spawning
A136: 512 | B136: Temp | C136: CoreSupSalm | D136: NA | E136: 13 | F136: 10 | G136: 13 | H136: -9 | I136: 99 | J136: 107.81 | K136: -0.1722 | L136: -0.1513 | M136: Core with Sup salm spawning
A137: 513 | B137: Temp | C137: CoreSupSalm | D137: NA | E137: 13 | F137: 1 | G137: 7 | H137: -9 | I137: 99 | J137: 107.81 | K137: -0.1722 | L137: -0.1513 | M137: Core with Sup salm spawning
A138: 513 | B138: Temp | C138: CoreSupSalm | D138: NA | E138: 16 | F138: 7 | G138: 8.5 | H138: -9 | I138: 99 | J138: 99.92 | K138: 0.923907 | L138: -0.13556 | M138: Core with Sup salm spawning
A139: 513 | B139: Temp | C139: CoreSupSalm | D139: NA | E139: 13 | F139: 8.5 | G139: 13 | H139: -9 | I139: 99 | J139: 107.81 | K139: -0.1722 | L139: -0.1513 | M139: Core with Sup salm spawning
A140: 514 | B140: Temp | C140: CoreSupSalm | D140: NA | E140: 13 | F140: 1 | G140: 7 | H140: -9 | I140: 99 | J140: 107.81 | K140: -0.1722 | L140: -0.1513 | M140: Core with Sup salm spawning
A141: 514 | B141: Temp | C141: CoreSupSalm | D141: NA | E141: 16 | F141: 7 | G141: 9 | H141: -9 | I141: 99 | J141: 99.92 | K141: 0.923907 | L141: -0.13556 | M141: Core with Sup salm spawning
A142: 514 | B142: Temp | C142: CoreSupSalm | D142: NA | E142: 13 | F142: 9 | G142: 13 | H142: -9 | I142: 99 | J142: 107.81 | K142: -0.1722 | L142: -0.1513 | M142: Core with Sup salm spawning
A143: 515 | B143: Temp | C143: CoreSupSalm | D143: NA | E143: 13 | F143: 1 | G143: 7 | H143: -9 | I143: 99 | J143: 107.81 | K143: -0.1722 | L143: -0.1513 | M143: Core with Sup salm spawning
A144: 515 | B144: Temp | C144: CoreSupSalm | D144: NA | E144: 16 | F144: 7 | G144: 9.5 | H144: -9 | I144: 99 | J144: 99.92 | K144: 0.923907 | L144: -0.13556 | M144: Core with Sup salm spawning
A145: 515 | B145: Temp | C145: CoreSupSalm | D145: NA | E145: 13 | F145: 9.5 | G145: 13 | H145: -9 | I145: 99 | J145: 107.81 | K145: -0.1722 | L145: -0.1513 | M145: Core with Sup salm spawning
A146: 516 | B146: Temp | C146: CoreSupSalm | D146: NA | E146: 13 | F146: 1 | G146: 7.5 | H146: -9 | I146: 99 | J146: 107.81 | K146: -0.1722 | L146: -0.1513 | M146: Core with Sup salm spawning
A147: 516 | B147: Temp | C147: CoreSupSalm | D147: NA | E147: 16 | F147: 7.5 | G147: 8 | H147: -9 | I147: 99 | J147: 99.92 | K147: 0.923907 | L147: -0.13556 | M147: Core with Sup salm spawning
A148: 516 | B148: Temp | C148: CoreSupSalm | D148: NA | E148: 13 | F148: 8 | G148: 13 | H148: -9 | I148: 99 | J148: 107.81 | K148: -0.1722 | L148: -0.1513 | M148: Core with Sup salm spawning
A149: 517 | B149: Temp | C149: CoreSupSalm | D149: NA | E149: 13 | F149: 1 | G149: 7.5 | H149: -9 | I149: 99 | J149: 107.81 | K149: -0.1722 | L149: -0.1513 | M149: Core with Sup salm spawning
A150: 517 | B150: Temp | C150: CoreSupSalm | D150: NA | E150: 16 | F150: 7.5 | G150: 8.5 | H150: -9 | I150: 99 | J150: 99.92 | K150: 0.923907 | L150: -0.13556 | M150: Core with Sup salm spawning
A151: 517 | B151: Temp | C151: CoreSupSalm | D151: NA | E151: 13 | F151: 8.5 | G151: 13 | H151: -9 | I151: 99 | J151: 107.81 | K151: -0.1722 | L151: -0.1513 | M151: Core with Sup salm spawning
A152: 518 | B152: Temp | C152: CoreSupSalm | D152: NA | E152: 13 | F152: 1 | G152: 7.5 | H152: -9 | I152: 99 | J152: 107.81 | K152: -0.1722 | L152: -0.1513 | M152: Core with Sup salm spawning
A153: 518 | B153: Temp | C153: CoreSupSalm | D153: NA | E153: 16 | F153: 7.5 | G153: 9 | H153: -9 | I153: 99 | J153: 99.92 | K153: 0.923907 | L153: -0.13556 | M153: Core with Sup salm spawning
A154: 518 | B154: Temp | C154: CoreSupSalm | D154: NA | E154: 13 | F154: 9 | G154: 13 | H154: -9 | I154: 99 | J154: 107.81 | K154: -0.1722 | L154: -0.1513 | M154: Core with Sup salm spawning
A155: 71 | B155: TP_P | C155: 1 | D155: NA | E155: 0 | F155: 1 | G155: 6 | H155: 0 | I155: 999 | J155: -22.3043 | K155: -31.2067 | L155: -0.9088 | M155: WQI=LN(x)
A156: 71 | B156: TP_P | C156: 1 | D156: NA | E156: 0 | F156: 6 | G156: 11 | H156: 0 | I156: 999 | J156: -45.6435 | K156: -22.4357 | L156: 2.11808 | M156: WQI=LN(x)
A157: 71 | B157: TP_P | C157: 1 | D157: NA | E157: 0 | F157: 11 | G157: 13 | H157: 0 | I157: 999 | J157: -22.3043 | K157: -31.2067 | L157: -0.9088 | M157: WQI=LN(x)
A158: 72 | B158: TP_P | C158: 2 | D158: NA | E158: 0 | F158: 1 | G158: 6 | H158: 0 | I158: 999 | J158: -26.2561 | K158: -45.216 | L158: -3.80483 | M158: WQI=LN(x)
A159: 72 | B159: TP_P | C159: 2 | D159: NA | E159: 0 | F159: 6 | G159: 11 | H159: 0 | I159: 999 | J159: -68.0023 | K159: -57.8648 | L159: -4.57211 | M159: WQI=LN(x)
A160: 72 | B160: TP_P | C160: 2 | D160: NA | E160: 0 | F160: 11 | G160: 13 | H160: 0 | I160: 999 | J160: -26.2561 | K160: -45.216 | L160: -3.80483 | M160: WQI=LN(x)
A161: 272 | B161: TP_P | C161: 2 | D161: SmallPS | E161: 0 | F161: 1 | G161: 6 | H161: 0 | I161: 999 | J161: -26.2561 | K161: -45.216 | L161: -3.80483 | M161: WQI=LN(x)
A162: 272 | B162: TP_P | C162: 2 | D162: SmallPS | E162: 0 | F162: 6 | G162: 11 | H162: 0 | I162: 999 | J162: -50.906 | K162: -3.6519 | L162: 18.805 | M162: WQI=LN(x)
A163: 272 | B163: TP_P | C163: 2 | D163: SmallPS | E163: 0 | F163: 11 | G163: 13 | H163: 0 | I163: 999 | J163: -26.2561 | K163: -45.216 | L163: -3.80483 | M163: WQI=LN(x)
A164: 73 | B164: TP_P | C164: 4 | D164: NA | E164: 0 | F164: 1 | G164: 6 | H164: 0 | I164: 999 | J164: -26.6586 | K164: -13.7327 | L164: 3.09295 | M164: WQI=LN(x)
A165: 73 | B165: TP_P | C165: 4 | D165: NA | E165: 0 | F165: 6 | G165: 11 | H165: 0 | I165: 999 | J165: -82.351 | K165: -38.6091 | L165: 0 | M165: WQI=LN(x)
A166: 73 | B166: TP_P | C166: 4 | D166: NA | E166: 0 | F166: 11 | G166: 13 | H166: 0 | I166: 999 | J166: -26.6586 | K166: -13.7327 | L166: 3.09295 | M166: WQI=LN(x)
A167: 74 | B167: TP_P | C167: 7 | D167: NA | E167: 0 | F167: 1 | G167: 6 | H167: 0 | I167: 999 | J167: 24.1568 | K167: -26.8113 | L167: -2.18636 | M167: WQI=LN(x)
A168: 74 | B168: TP_P | C168: 7 | D168: NA | E168: 0 | F168: 6 | G168: 11 | H168: 0 | I168: 999 | J168: 28.3779 | K168: -17.2759 | L168: -0.2800899 | M168: WQI=LN(x)
A169: 74 | B169: TP_P | C169: 7 | D169: NA | E169: 0 | F169: 11 | G169: 13 | H169: 0 | I169: 999 | J169: 24.1568 | K169: -26.8113 | L169: -2.18636 | M169: WQI=LN(x)
A170: 75 | B170: TP_P | C170: 8 | D170: NA | E170: 0 | F170: 1 | G170: 6 | H170: 0 | I170: 999 | J170: -57.6117 | K170: -58.0565 | L170: -5.11388 | M170: WQI=LN(x)
A171: 75 | B171: TP_P | C171: 8 | D171: NA | E171: 0 | F171: 6 | G171: 11 | H171: 0 | I171: 999 | J171: -39.2805 | K171: -29.7187 | L171: 0.2257024 | M171: WQI=LN(x)
A172: 75 | B172: TP_P | C172: 8 | D172: NA | E172: 0 | F172: 11 | G172: 13 | H172: 0 | I172: 999 | J172: -57.6117 | K172: -58.0565 | L172: -5.11388 | M172: WQI=LN(x)
A173: 61 | B173: TPN | C173: 1 | D173: NA | E173: 0 | F173: 1 | G173: 6 | H173: 0 | I173: 999 | J173: 102.3021 | K173: -43.1882 | L173: -19.7641
A174: 61 | B174: TPN | C174: 1 | D174: NA | E174: 0 | F174: 6 | G174: 11 | H174: 0 | I174: 999 | J174: 102.9609 | K174: -95.9463 | L174: 0
A175: 61 | B175: TPN | C175: 1 | D175: NA | E175: 0 | F175: 11 | G175: 13 | H175: 0 | I175: 999 | J175: 102.3021 | K175: -43.1882 | L175: -19.7641
A176: 62 | B176: TPN | C176: 2 | D176: NA | E176: 0 | F176: 1 | G176: 6 | H176: 0 | I176: 999 | J176: 102.55 | K176: -3.86202 | L176: -61.1364
A177: 62 | B177: TPN | C177: 2 | D177: NA | E177: 0 | F177: 6 | G177: 11 | H177: 0 | I177: 999 | J177: 103.4779 | K177: -42.5636 | L177: -51.5611
A178: 62 | B178: TPN | C178: 2 | D178: NA | E178: 0 | F178: 11 | G178: 13 | H178: 0 | I178: 999 | J178: 102.55 | K178: -3.86202 | L178: -61.1364
A179: 262 | B179: TPN | C179: 2 | D179: SmallPS | E179: 0 | F179: 1 | G179: 6 | H179: 0 | I179: 999 | J179: 137 | K179: -38.326 | L179: -0.1432
A180: 262 | B180: TPN | C180: 2 | D180: SmallPS | E180: 0 | F180: 6 | G180: 11 | H180: 0 | I180: 999 | J180: 230.08 | K180: -125.27 | L180: 13.792
A181: 262 | B181: TPN | C181: 2 | D181: SmallPS | E181: 0 | F181: 11 | G181: 13 | H181: 0 | I181: 999 | J181: 137 | K181: -38.326 | L181: -0.1432
A182: 63 | B182: TPN | C182: 4 | D182: NA | E182: 0 | F182: 1 | G182: 6 | H182: 0 | I182: 999 | J182: 113.2895 | K182: -239.5035 | L182: 0
A183: 63 | B183: TPN | C183: 4 | D183: NA | E183: 0 | F183: 6 | G183: 11 | H183: 0 | I183: 999 | J183: 109.63 | K183: -296.296 | L183: 0
A184: 63 | B184: TPN | C184: 4 | D184: NA | E184: 0 | F184: 11 | G184: 13 | H184: 0 | I184: 999 | J184: 113.2895 | K184: -239.5035 | L184: 0
A185: 64 | B185: TPN | C185: 7 | D185: NA | E185: 0 | F185: 1 | G185: 6 | H185: 0 | I185: 999 | J185: 100.9614 | K185: -15.1479 | L185: 0.662255
A186: 64 | B186: TPN | C186: 7 | D186: NA | E186: 0 | F186: 6 | G186: 11 | H186: 0 | I186: 999 | J186: 100 | K186: -14.14 | L186: 0
A187: 64 | B187: TPN | C187: 7 | D187: NA | E187: 0 | F187: 11 | G187: 13 | H187: 0 | I187: 999 | J187: 100.9614 | K187: -15.1479 | L187: 0.662255
A188: 65 | B188: TPN | C188: 8 | D188: NA | E188: 0 | F188: 1 | G188: 6 | H188: 0 | I188: 999 | J188: 100.3186 | K188: 4.9998 | L188: -31.2691
A189: 65 | B189: TPN | C189: 8 | D189: NA | E189: 0 | F189: 6 | G189: 11 | H189: 0 | I189: 999 | J189: 100 | K189: 10 | L189: -35
A190: 65 | B190: TPN | C190: 8 | D190: NA | E190: 0 | F190: 11 | G190: 13 | H190: 0 | I190: 999 | J190: 100.3186 | K190: 4.9998 | L190: -31.2691
A191: 91 | B191: Turb | C191: 1 | D191: No | E191: 0 | F191: 1 | G191: 6 | H191: 0 | I191: 999999 | J191: 99.6621 | K191: -4.05247 | L191: -2.00526 | M191: WQI=LN(x)
A192: 91 | B192: Turb | C192: 1 | D192: No | E192: 0 | F192: 6 | G192: 11 | H192: 0 | I192: 999999 | J192: 92.3579 | K192: -14.1133 | L192: -1.1457 | M192: WQI=LN(x)
A193: 91 | B193: Turb | C193: 1 | D193: No | E193: 0 | F193: 11 | G193: 13 | H193: 0 | I193: 999999 | J193: 99.6621 | K193: -4.05247 | L193: -2.00526 | M193: WQI=LN(x)
A194: 92 | B194: Turb | C194: 2 | D194: No | E194: 0 | F194: 1 | G194: 6 | H194: 0 | I194: 999999 | J194: 101.1178 | K194: -0.037926 | L194: -2.61866 | M194: WQI=LN(x)
A195: 92 | B195: Turb | C195: 2 | D195: No | E195: 0 | F195: 6 | G195: 11 | H195: 0 | I195: 999999 | J195: 100.2948 | K195: -5.87364 | L195: -2.06283 | M195: WQI=LN(x)
A196: 92 | B196: Turb | C196: 2 | D196: No | E196: 0 | F196: 11 | G196: 13 | H196: 0 | I196: 999999 | J196: 101.1178 | K196: -0.037926 | L196: -2.61866 | M196: WQI=LN(x)
A197: 93 | B197: Turb | C197: 4 | D197: No | E197: 0 | F197: 1 | G197: 6 | H197: 0 | I197: 999999 | J197: 90.9645 | K197: -16.2966 | L197: -0.301131 | M197: WQI=LN(x)
A198: 93 | B198: Turb | C198: 4 | D198: No | E198: 0 | F198: 6 | G198: 11 | H198: 0 | I198: 999999 | J198: 83.9815 | K198: -26.125 | L198: 0.61845 | M198: WQI=LN(x)
A199: 93 | B199: Turb | C199: 4 | D199: No | E199: 0 | F199: 11 | G199: 13 | H199: 0 | I199: 999999 | J199: 90.9645 | K199: -16.2966 | L199: -0.301131 | M199: WQI=LN(x)
A200: 94 | B200: Turb | C200: 7 | D200: No | E200: 0 | F200: 1 | G200: 6 | H200: 0 | I200: 999999 | J200: 99.1624 | K200: -6.43442 | L200: -1.31263 | M200: WQI=LN(x)
... 84 more rows

Sheet Worksheet
A1: Data can be pasted here from databases or web sites (e.g., http://www.ecy.wa.gov/programs/eap/fw_riv/rv_main.html),
A2: cleaned up, then pasted to the "Main" worksheet.
A3: STATION | B3: date | C3: Fecal Coliform Bacteria | D3: Oxygen | E3: pH | F3: Phosphorus, Total | G3: Suspended Solids | H3: Temperature | I3: Total Persulf Nitrogen | J3: Turbidity
A4: =A18 -> 01A050 | B4: =B19 -> 2009-10-20 | C4: =H19 -> 25 | D4: =P19 -> 10.19 | E4: =R19 -> 7.16 | F4: =AB19 -> 0.0449 | G4: =V19 -> 24 | H4: =X19 -> 9.7 | I4: =AD19 -> 0.394 | J4: =AF19 -> 14
A5: 01A050 | B5: =B20 -> 2009-11-17 | C5: =H20 -> 33 | D5: =P20 -> 12 | F5: =AB20 -> 0.477 | G5: =V20 -> 529 | H5: =X20 -> 6 | I5: =AD20 -> 0.195 | J5: =AF20 -> 300
A6: 01A050 | B6: 2009-12-15 | C6: 8 | D6: 13.1 | E6: =R21 -> 7.44 | F6: 0.0228 | G6: 10 | H6: 3.1 | I6: 0.271 | J6: 7.4
A7: 01A050 | B7: 2010-01-26 | C7: 1 | D7: 12.6 | E7: 7.37 | F7: 0.0143 | G7: 6 | H7: 4.7 | I7: 0.225 | J7: 6.1
A8: 01A050 | B8: 2010-02-23 | C8: 1 | D8: 13.3 | E8: 7.57 | F8: 0.0116 | G8: 4 | H8: 5.1 | I8: 0.194 | J8: 2.7
A9: 01A050 | B9: 2010-03-16 | C9: 2 | D9: 12.5 | E9: 7.48 | F9: 0.0113 | G9: 6 | H9: 7.4 | I9: 0.16 | J9: 5.1
A10: 01A050 | B10: 2010-04-20 | C10: 4 | D10: 12.4 | E10: 7.18 | F10: 0.0204 | G10: 17 | H10: 7.5 | I10: 0.121 | J10: 12
A11: 01A050 | B11: 2010-05-18 | C11: 7 | D11: 11.4 | E11: 7.51 | F11: 0.0108 | G11: 6 | H11: 10.3 | I11: 0.097 | J11: 3.8
A12: 01A050 | B12: 2010-06-22 | C12: 2 | D12: 10.9 | E12: 7.6 | F12: 0.0081 | G12: 3 | H12: 14 | I12: 0.089 | J12: 1.9
A13: 01A050 | B13: 2010-07-27 | C13: 4 | D13: 10.3 | E13: 8.46 | F13: 0.0098 | G13: 7 | H13: 20.1 | I13: 0.062 | J13: 2
A14: 01A050 | B14: 2010-08-24 | C14: 4 | D14: 10.9 | E14: 8.42 | F14: 0.0122 | G14: 2 | H14: 19.3 | I14: 0.096 | J14: 0.7
A15: 01A050 | B15: 2010-09-28 | C15: 44 | D15: 10.6 | E15: 7.21 | F15: 0.0394 | G15: 35 | H15: 13.2 | I15: 0.201 | J15: 22
A17: STATION | B17: date | C17: time | D17: COND | F17: DOC | H17: FC | J17: NH3_N | L17: NO2_NO3 | N17: OP_DIS | P17: OXYGEN | R17: PH | T17: PRESS | V17: SUSSOL | X17: TEMP | Z17: TOC | AB17: TP_P | AD17: TPN | AF17: TURB
A18: 01A050 | D18: (umhos/cm) | F18: (mg/L) | H18: (#/100ml) | J18: (mg/L) | L18: (mg/L) | N18: (mg/L) | P18: (mg/L) | R18: (pH) | T18: (mm/Hg) | V18: (mg/L) | X18: (deg C) | Z18: (mg/L) | AB18: (mg/L) | AD18: (mg/L) | AF18: (NTU)
A19: 01A050 | B19: 2009-10-20 | C19: 12:45:00 | D19: 56 | H19: 25 | J19: 0.045 | L19: 0.315 | N19: 0.0127 | P19: 10.19 | R19: 7.16 | T19: 763.27 | V19: 24 | X19: 9.7 | AB19: 0.0449 | AD19: 0.394 | AF19: 14
A20: 01A050 | B20: 2009-11-17 | C20: 12:40:00 | D20: 27 | H20: 33 | I20: J | J20: 0.013 | L20: 0.171 | N20: 0.0053 | P20: 12 | T20: 758.19 | V20: 529 | W20: J | X20: 6 | AB20: 0.477 | AD20: 0.195 | AF20: 300
A21: 01A050 | B21: 2009-12-15 | C21: 12:15:00 | D21: 75 | H21: 8 | J21: 0.01 | K21: U | L21: 0.241 | N21: 0.0093 | P21: 13.1 | R21: 7.44 | T21: 754.38 | V21: 10 | X21: 3.1 | AB21: 0.0228 | AD21: 0.271 | AF21: 7.4
A22: 01A050 | B22: 2010-01-26 | C22: 14:15:00 | D22: 60 | H22: 1 | I22: U | J22: 0.01 | K22: U | L22: 0.206 | N22: 0.0063 | P22: 12.6 | R22: 7.37 | T22: 759.46 | V22: 6 | X22: 4.7 | AB22: 0.0143 | AD22: 0.225 | AF22: 6.1
A23: 01A050 | B23: 2010-02-23 | C23: 15:40:00 | D23: 66 | H23: 1 | I23: U | J23: 0.01 | K23: U | L23: 0.151 | N23: 0.0065 | P23: 13.3 | R23: 7.57 | T23: 753.11 | V23: 4 | W23: J | X23: 5.1 | AB23: 0.0116 | AD23: 0.194 | AF23: 2.7
A24: 01A050 | B24: 2010-03-16 | C24: 14:45:00 | D24: 58 | H24: 2 | J24: 0.01 | K24: U | L24: 0.134 | N24: 0.0057 | P24: 12.5 | R24: 7.48 | T24: 762 | V24: 6 | X24: 7.4 | AB24: 0.0113 | AD24: 0.16 | AF24: 5.1
A25: 01A050 | B25: 2010-04-20 | C25: 14:05:00 | D25: 41 | H25: 4 | I25: J | J25: 0.01 | K25: U | L25: 0.098 | N25: 0.0037 | P25: 12.4 | R25: 7.18 | T25: 751.84 | V25: 17 | X25: 7.5 | AB25: 0.0204 | AD25: 0.121 | AF25: 12
A26: 01A050 | B26: 2010-05-18 | C26: 15:35:00 | D26: 43 | H26: 7 | J26: 0.01 | K26: U | L26: 0.067 | N26: 0.003 | O26: U | P26: 11.4 | R26: 7.51 | T26: 754.38 | V26: 6 | X26: 10.3 | AB26: 0.0108 | AD26: 0.097 | AF26: 3.8
A27: 01A050 | B27: 2010-06-22 | C27: 15:20:00 | D27: 58 | H27: 2 | J27: 0.01 | K27: U | L27: 0.063 | N27: 0.0043 | P27: 10.9 | R27: 7.6 | T27: 759.46 | V27: 3 | X27: 14 | AB27: 0.0081 | AD27: 0.089 | AF27: 1.9
A28: 01A050 | B28: 2010-07-27 | C28: 15:40:00 | D28: 80 | H28: 4 | J28: 0.01 | K28: U | L28: 0.01 | M28: U | N28: 0.0057 | P28: 10.3 | R28: 8.46 | T28: 754.38 | V28: 7 | X28: 20.1 | AB28: 0.0098 | AD28: 0.062 | AF28: 2
A29: 01A050 | B29: 2010-08-24 | C29: 16:50:00 | D29: 101 | F29: 1 | G29: J | H29: 4 | J29: 0.033 | L29: 0.034 | N29: 0.0079 | P29: 10.9 | R29: 8.42 | T29: 756.92 | V29: 2 | X29: 19.3 | Z29: 1 | AA29: J | AB29: 0.0122 | AD29: 0.096 | AF29: 0.7
B30: 2010-09-28 | C30: 13:40:00 | D30: 35 | H30: 44 | J30: 0.01 | K30: U | L30: 0.14 | N30: 0.0036 | P30: 10.6 | R30: 7.21 | T30: 759.46 | V30: 35 | W30: J | X30: 13.2 | AB30: 0.0394 | AD30: 0.201 | AF30: 22

Sheet 1997Curves
A1: ParamClassID | B1: param | C1: WQIClass | D1: Glacial | E1: Criterion | F1: Start Month | G1: End Month | H1: LowerResult | I1: UpperResult | J1: a | K1: b | L1: b2 | M1: Comments
A2: 51 | B2: FC | C2: A | D2: No | E2: 100 | F2: 1 | G2: 12 | H2: 0 | I2: 999999 | J2: 103.59 | K2: 0.810055 | L2: -1.28485 | M2: WQI=LN(x)
A3: 53 | B3: FC | C3: AA | D3: No | E3: 50 | F3: 1 | G3: 12 | H3: 0 | I3: 999999 | J3: 103.25 | K3: -0.5832 | L3: -1.35641 | M3: WQI=LN(x)
A4: 52 | B4: FC | C4: B | D4: No | E4: 200 | F4: 1 | G4: 12 | H4: 0 | I4: 999999 | J4: 102.944 | K4: 2.59723 | L4: -1.30612 | M4: WQI=LN(x)
A5: 21 | B5: Oxygen | C5: A | D5: No | E5: 8 | F5: 1 | G5: 12 | H5: 0 | I5: 12 | J5: -67.3255 | K5: 27.5473 | L5: -1.14663
A6: 21 | B6: Oxygen | C6: A | D6: No | E6: 8 | F6: 1 | G6: 12 | H6: 12.001 | I6: 99 | J6: 100 | K6: 0 | L6: 0
A7: 23 | B7: Oxygen | C7: AA | D7: No | E7: 9.5 | F7: 1 | G7: 12 | H7: 0 | I7: 12.5 | J7: -131.2 | K7: 33.81 | L7: -1.22397
A8: 23 | B8: Oxygen | C8: AA | D8: No | E8: 9.5 | F8: 1 | G8: 12 | H8: 12.501 | I8: 99 | J8: 100 | K8: 0 | L8: 0
A9: 22 | B9: Oxygen | C9: B | D9: No | E9: 6.5 | F9: 1 | G9: 12 | H9: 0 | I9: 8.5 | J9: -109.509 | K9: 43.6529 | L9: -2.23081
A10: 22 | B10: Oxygen | C10: B | D10: No | E10: 6.5 | F10: 1 | G10: 12 | H10: 8.501 | I10: 99 | J10: 100 | K10: 0 | L10: 0
A11: 24 | B11: Oxygen | C11: S | D11: No | E11: 5 | F11: 6 | G11: 9 | H11: 0 | I11: 7.5 | J11: -64.4444 | K11: 42.7778 | L11: 2.7778 | M11: Limited to >5.0 Jun1 through Sep15. (This evaluates ALL of Sep against 5.0 criterion)
A12: 24 | B12: Oxygen | C12: S | D12: No | E12: 5 | F12: 6 | G12: 9 | H12: 7.501 | I12: 99 | J12: 100 | K12: 0 | L12: 0
A13: 24 | B13: Oxygen | C13: S | D13: No | E13: 8 | F13: 1 | G13: 5 | H13: 0 | I13: 12 | J13: -62.3255 | K13: 27.5473 | L13: -1.14663
A14: 24 | B14: Oxygen | C14: S | D14: No | E14: 8 | F14: 1 | G14: 5 | H14: 12.001 | I14: 99 | J14: 100 | K14: 0 | L14: 0
A15: 24 | B15: Oxygen | C15: S | D15: No | E15: 8 | F15: 10 | G15: 12 | H15: 0 | I15: 12 | J15: -62.3255 | K15: 27.5473 | L15: -1.14663
A16: 24 | B16: Oxygen | C16: S | D16: No | E16: 8 | F16: 10 | G16: 12 | H16: 12.001 | I16: 99 | J16: 100 | K16: 0 | L16: 0
A17: 25 | B17: Oxygen | C17: S2 | D17: No | E17: 5 | F17: 1 | G17: 12 | H17: 0 | I17: 7.5 | J17: -64.4444 | K17: 42.7778 | L17: 2.7778 | M17: Limited to >5.0 year round
A18: 25 | B18: Oxygen | C18: S2 | D18: No | E18: 5 | F18: 1 | G18: 12 | H18: 7.501 | I18: 99 | J18: 100 | K18: 0 | L18: 0
A19: 41 | B19: pH | C19: A | D19: No | E19: 6.5 | F19: 1 | G19: 12 | H19: 4 | I19: 7.5 | J19: -531.422 | K19: 158.619 | L19: -9.92672
A20: 41 | B20: pH | C20: A | D20: No | E20: 8.5 | F20: 1 | G20: 12 | H20: 7.501 | I20: 9.9 | J20: -338.912 | K20: 128.627 | L20: -9.33089
A21: 43 | B21: ph | C21: AA | D21: No | E21: 6.5 | F21: 1 | G21: 12 | H21: 4 | I21: 7.5 | J21: -531.422 | K21: 158.619 | L21: -9.92672
A22: 43 | B22: ph | C22: AA | D22: No | E22: 8.5 | F22: 1 | G22: 12 | H22: 7.501 | I22: 9.9 | J22: -338.912 | K22: 128.627 | L22: -9.33089
A23: 42 | B23: pH | C23: B | D23: No | E23: 6.5 | F23: 1 | G23: 12 | H23: 4 | I23: 7.5 | J23: -531.422 | K23: 158.619 | L23: -9.92672
A24: 42 | B24: pH | C24: B | D24: No | E24: 8.5 | F24: 1 | G24: 12 | H24: 7.501 | I24: 9.9 | J24: -338.912 | K24: 128.627 | L24: -9.33089
A25: 81 | B25: TSS | C25: 1 | D25: No | E25: 0 | F25: 1 | G25: 5 | H25: 0 | I25: 999999 | J25: 100.7321 | K25: -5.17377 | L25: -1.31478 | M25: WQI=LN(x)
A26: 81 | B26: TSS | C26: 1 | D26: No | E26: 0 | F26: 6 | G26: 10 | H26: 0 | I26: 999999 | J26: 102.3444 | K26: -19.28875 | L26: 0.087332 | M26: WQI=LN(x)
A27: 81 | B27: TSS | C27: 1 | D27: No | E27: 0 | F27: 11 | G27: 12 | H27: 0 | I27: 999999 | J27: 100.7321 | K27: -5.17377 | L27: -1.31478 | M27: WQI=LN(x)
A28: 82 | B28: TSS | C28: 2 | D28: No | E28: 0 | F28: 1 | G28: 5 | H28: 0 | I28: 999999 | J28: 100.7779 | K28: 1.47273 | L28: -2.16014 | M28: WQI=LN(x)
A29: 82 | B29: TSS | C29: 2 | D29: No | E29: 0 | F29: 6 | G29: 10 | H29: 0 | I29: 999999 | J29: 109.9171 | K29: -11.2787 | L29: -0.698103 | M29: WQI=LN(x)
A30: 82 | B30: TSS | C30: 2 | D30: No | E30: 0 | F30: 11 | G30: 12 | H30: 0 | I30: 999999 | J30: 100.7779 | K30: 1.47273 | L30: -2.16014 | M30: WQI=LN(x)
A31: 83 | B31: TSS | C31: 4 | D31: No | E31: 0 | F31: 1 | G31: 5 | H31: 0 | I31: 999999 | J31: 100.9078 | K31: -7.1956 | L31: -2.26536 | M31: WQI=LN(x)
A32: 83 | B32: TSS | C32: 4 | D32: No | E32: 0 | F32: 6 | G32: 10 | H32: 0 | I32: 999999 | J32: 102.5005 | K32: -26.039 | L32: -0.768096 | M32: WQI=LN(x)
A33: 83 | B33: TSS | C33: 4 | D33: No | E33: 0 | F33: 11 | G33: 12 | H33: 0 | I33: 999999 | J33: 100.9078 | K33: -7.1956 | L33: -2.26536 | M33: WQI=LN(x)
A34: 84 | B34: TSS | C34: 7 | D34: No | E34: 0 | F34: 1 | G34: 5 | H34: 0 | I34: 999999 | J34: 101.1482 | K34: -4.23136 | L34: -1.33006 | M34: WQI=LN(x)
A35: 84 | B35: TSS | C35: 7 | D35: No | E35: 0 | F35: 6 | G35: 10 | H35: 0 | I35: 999999 | J35: 100.2034 | K35: 8.49706 | L35: -5.17937 | M35: WQI=LN(x)
A36: 84 | B36: TSS | C36: 7 | D36: No | E36: 0 | F36: 11 | G36: 12 | H36: 0 | I36: 999999 | J36: 101.1482 | K36: -4.23136 | L36: -1.33006 | M36: WQI=LN(x)
A37: 85 | B37: TSS | C37: 8 | D37: No | E37: 0 | F37: 1 | G37: 5 | H37: 0 | I37: 999999 | J37: 102.687 | K37: -17.5256 | L37: 0.467769 | M37: WQI=LN(x)
A38: 85 | B38: TSS | C38: 8 | D38: No | E38: 0 | F38: 6 | G38: 10 | H38: 0 | I38: 999999 | J38: 101.9152 | K38: -17.2765 | L38: -1.39424 | M38: WQI=LN(x)
A39: 85 | B39: TSS | C39: 8 | D39: No | E39: 0 | F39: 11 | G39: 12 | H39: 0 | I39: 999999 | J39: 102.687 | K39: -17.5256 | L39: 0.467769 | M39: WQI=LN(x)
A40: 11 | B40: Temp | C40: A | D40: No | E40: 18 | F40: 1 | G40: 12 | H40: -9 | I40: 99 | J40: 107.615 | K40: 0.923907 | L40: -0.135563
A41: 14 | B41: Temp | C41: AA | D41: No | E41: 16 | F41: 1 | G41: 12 | H41: -9 | I41: 99 | J41: 100 | K41: 0.923907 | L41: -0.135563
A42: 12 | B42: Temp | C42: B | D42: No | E42: 21 | F42: 1 | G42: 12 | H42: -9 | I42: 99 | J42: 88.1234 | K42: 3.9808 | L42: -0.207885
A43: 13 | B43: Temp | C43: S | D43: No | E43: 20 | F43: 1 | G43: 12 | H43: -9 | I43: 99 | J43: 104.8229 | K43: 2.00886 | L43: -0.162453
A44: 71 | B44: TP | C44: 1 | D44: No | E44: 0 | F44: 1 | G44: 5 | H44: 0 | I44: 999 | J44: -22.3043 | K44: -31.2067 | L44: -0.9088 | M44: WQI=LN(x)
A45: 71 | B45: TP | C45: 1 | D45: No | E45: 0 | F45: 6 | G45: 10 | H45: 0 | I45: 999 | J45: -45.6435 | K45: -22.4357 | L45: 2.11808 | M45: WQI=LN(x)
A46: 71 | B46: TP | C46: 1 | D46: No | E46: 0 | F46: 11 | G46: 12 | H46: 0 | I46: 999 | J46: -22.3043 | K46: -31.2067 | L46: -0.9088 | M46: WQI=LN(x)
A47: 72 | B47: TP | C47: 2 | D47: No | E47: 0 | F47: 1 | G47: 5 | H47: 0 | I47: 999 | J47: -26.2561 | K47: -45.216 | L47: -3.80483 | M47: WQI=LN(x)
A48: 72 | B48: TP | C48: 2 | D48: No | E48: 0 | F48: 6 | G48: 10 | H48: 0 | I48: 999 | J48: -68.0023 | K48: -57.8648 | L48: -4.57211 | M48: WQI=LN(x)
A49: 72 | B49: TP | C49: 2 | D49: No | E49: 0 | F49: 11 | G49: 12 | H49: 0 | I49: 999 | J49: -26.2561 | K49: -45.216 | L49: -3.80483 | M49: WQI=LN(x)
A50: 73 | B50: TP | C50: 4 | D50: No | E50: 0 | F50: 1 | G50: 5 | H50: 0 | I50: 999 | J50: -26.6586 | K50: -13.7327 | L50: 3.09295 | M50: WQI=LN(x)
A51: 73 | B51: TP | C51: 4 | D51: No | E51: 0 | F51: 6 | G51: 10 | H51: 0 | I51: 999 | J51: -82.351 | K51: -38.6091 | L51: 0 | M51: WQI=LN(x)
A52: 73 | B52: TP | C52: 4 | D52: No | E52: 0 | F52: 11 | G52: 12 | H52: 0 | I52: 999 | J52: -26.6586 | K52: -13.7327 | L52: 3.09295 | M52: WQI=LN(x)
A53: 74 | B53: TP | C53: 7 | D53: No | E53: 0 | F53: 1 | G53: 5 | H53: 0 | I53: 999 | J53: 24.1568 | K53: -26.8113 | L53: -2.18636 | M53: WQI=LN(x)
A54: 74 | B54: TP | C54: 7 | D54: No | E54: 0 | F54: 6 | G54: 10 | H54: 0 | I54: 999 | J54: 28.3779 | K54: -17.2759 | L54: -0.2800899 | M54: WQI=LN(x)
A55: 74 | B55: TP | C55: 7 | D55: No | E55: 0 | F55: 11 | G55: 12 | H55: 0 | I55: 999 | J55: 24.1568 | K55: -26.8113 | L55: -2.18636 | M55: WQI=LN(x)
A56: 75 | B56: TP | C56: 8 | D56: No | E56: 0 | F56: 1 | G56: 5 | H56: 0 | I56: 999 | J56: -57.6117 | K56: -58.0565 | L56: -5.11388 | M56: WQI=LN(x)
A57: 75 | B57: TP | C57: 8 | D57: No | E57: 0 | F57: 6 | G57: 10 | H57: 0 | I57: 999 | J57: -39.2805 | K57: -29.7187 | L57: 0.2257024 | M57: WQI=LN(x)
A58: 75 | B58: TP | C58: 8 | D58: No | E58: 0 | F58: 11 | G58: 12 | H58: 0 | I58: 999 | J58: -57.6117 | K58: -58.0565 | L58: -5.11388 | M58: WQI=LN(x)
A59: 61 | B59: TN | C59: 1 | D59: No | E59: 0 | F59: 1 | G59: 5 | H59: 0 | I59: 999 | J59: 102.3021 | K59: -43.1882 | L59: -19.7641
A60: 61 | B60: TN | C60: 1 | D60: No | E60: 0 | F60: 6 | G60: 10 | H60: 0 | I60: 999 | J60: 102.9609 | K60: -95.9463 | L60: 0
A61: 61 | B61: TN | C61: 1 | D61: No | E61: 0 | F61: 11 | G61: 12 | H61: 0 | I61: 999 | J61: 102.3021 | K61: -43.1882 | L61: -19.7641
A62: 62 | B62: TN | C62: 2 | D62: No | E62: 0 | F62: 1 | G62: 5 | H62: 0 | I62: 999 | J62: 102.55 | K62: -3.86202 | L62: -61.1364
A63: 62 | B63: TN | C63: 2 | D63: No | E63: 0 | F63: 6 | G63: 10 | H63: 0 | I63: 999 | J63: 103.4779 | K63: -42.5636 | L63: -51.5611
A64: 62 | B64: TN | C64: 2 | D64: No | E64: 0 | F64: 11 | G64: 12 | H64: 0 | I64: 999 | J64: 102.55 | K64: -3.86202 | L64: -61.1364
A65: 63 | B65: TN | C65: 4 | D65: No | E65: 0 | F65: 1 | G65: 5 | H65: 0 | I65: 999 | J65: 113.2895 | K65: -239.5035 | L65: 0
A66: 63 | B66: TN | C66: 4 | D66: No | E66: 0 | F66: 6 | G66: 10 | H66: 0 | I66: 999 | J66: 109.63 | K66: -296.296 | L66: 0
A67: 63 | B67: TN | C67: 4 | D67: No | E67: 0 | F67: 11 | G67: 12 | H67: 0 | I67: 999 | J67: 113.2895 | K67: -239.5035 | L67: 0
A68: 64 | B68: TN | C68: 7 | D68: No | E68: 0 | F68: 1 | G68: 5 | H68: 0 | I68: 999 | J68: 100.9614 | K68: -15.1479 | L68: 0.662255
A69: 64 | B69: TN | C69: 7 | D69: No | E69: 0 | F69: 6 | G69: 10 | H69: 0 | I69: 999 | J69: 100 | K69: -14.14 | L69: 0
A70: 64 | B70: TN | C70: 7 | D70: No | E70: 0 | F70: 11 | G70: 12 | H70: 0 | I70: 999 | J70: 100.9614 | K70: -15.1479 | L70: 0.662255
A71: 65 | B71: TN | C71: 8 | D71: No | E71: 0 | F71: 1 | G71: 5 | H71: 0 | I71: 999 | J71: 100.3186 | K71: 4.9998 | L71: -31.2691
A72: 65 | B72: TN | C72: 8 | D72: No | E72: 0 | F72: 6 | G72: 10 | H72: 0 | I72: 999 | J72: 100 | K72: 10 | L72: -35
A73: 65 | B73: TN | C73: 8 | D73: No | E73: 0 | F73: 11 | G73: 12 | H73: 0 | I73: 999 | J73: 100.3186 | K73: 4.9998 | L73: -31.2691
A74: 91 | B74: Turbidity | C74: 1 | D74: No | E74: 0 | F74: 1 | G74: 5 | H74: 0 | I74: 999999 | J74: 99.6621 | K74: -4.05247 | L74: -2.00526 | M74: WQI=LN(x)
A75: 91 | B75: Turbidity | C75: 1 | D75: No | E75: 0 | F75: 6 | G75: 10 | H75: 0 | I75: 999999 | J75: 92.3579 | K75: -14.1133 | L75: -1.1457 | M75: WQI=LN(x)
A76: 91 | B76: Turbidity | C76: 1 | D76: No | E76: 0 | F76: 11 | G76: 12 | H76: 0 | I76: 999999 | J76: 99.6621 | K76: -4.05247 | L76: -2.00526 | M76: WQI=LN(x)
A77: 92 | B77: Turbidity | C77: 2 | D77: No | E77: 0 | F77: 1 | G77: 5 | H77: 0 | I77: 999999 | J77: 101.1178 | K77: -0.037926 | L77: -2.61866 | M77: WQI=LN(x)
A78: 92 | B78: Turbidity | C78: 2 | D78: No | E78: 0 | F78: 6 | G78: 10 | H78: 0 | I78: 999999 | J78: 100.2948 | K78: -5.87364 | L78: -2.06283 | M78: WQI=LN(x)
A79: 92 | B79: Turbidity | C79: 2 | D79: No | E79: 0 | F79: 11 | G79: 12 | H79: 0 | I79: 999999 | J79: 101.1178 | K79: -0.037926 | L79: -2.61866 | M79: WQI=LN(x)
A80: 93 | B80: Turbidity | C80: 4 | D80: No | E80: 0 | F80: 1 | G80: 5 | H80: 0 | I80: 999999 | J80: 90.9645 | K80: -16.2966 | L80: -0.301131 | M80: WQI=LN(x)
A81: 93 | B81: Turbidity | C81: 4 | D81: No | E81: 0 | F81: 6 | G81: 10 | H81: 0 | I81: 999999 | J81: 83.9815 | K81: -26.125 | L81: 0.61845 | M81: WQI=LN(x)
A82: 93 | B82: Turbidity | C82: 4 | D82: No | E82: 0 | F82: 11 | G82: 12 | H82: 0 | I82: 999999 | J82: 90.9645 | K82: -16.2966 | L82: -0.301131 | M82: WQI=LN(x)
A83: 94 | B83: Turbidity | C83: 7 | D83: No | E83: 0 | F83: 1 | G83: 5 | H83: 0 | I83: 999999 | J83: 99.1624 | K83: -6.43442 | L83: -1.31263 | M83: WQI=LN(x)
A84: 94 | B84: Turbidity | C84: 7 | D84: No | E84: 0 | F84: 6 | G84: 10 | H84: 0 | I84: 999999 | J84: 99.6197 | K84: -4.43165 | L84: -3.1984 | M84: WQI=LN(x)
A85: 94 | B85: Turbidity | C85: 7 | D85: No | E85: 0 | F85: 11 | G85: 12 | H85: 0 | I85: 999999 | J85: 99.1624 | K85: -6.43442 | L85: -1.31263 | M85: WQI=LN(x)
A86: 95 | B86: Turbidity | C86: 8 | D86: No | E86: 0 | F86: 1 | G86: 5 | H86: 0 | I86: 999999 | J86: 96.1118 | K86: -18.16 | L86: 0.48295 | M86: WQI=LN(x)
A87: 95 | B87: Turbidity | C87: 8 | D87: No | E87: 0 | F87: 6 | G87: 10 | H87: 0 | I87: 999999 | J87: 93.4405 | K87: -23.2416 | L87: -1.71641 | M87: WQI=LN(x)
A88: 95 | B88: Turbidity | C88: 8 | D88: No | E88: 0 | F88: 11 | G88: 12 | H88: 0 | I88: 999999 | J88: 96.1118 | K88: -18.16 | L88: 0.48295 | M88: WQI=LN(x)
